{"text_format":"1","workbook":"xlsx","n_sheets":2,"sheets":["Нужно 200 столбцов","Пример Работает"],"not_rendered":{"charts":0,"images":0,"macros":1,"external_links":0,"defined_names":0,"comments":0,"pivot_tables":0},"unopened":[],"bounds":{"document_bytes":16777216,"sheet_cells":100000,"rows_first":2000,"rows_last":500,"rows_between":2000,"halvings":0,"cell_chars":16384,"cell_head_chars":4096},"cells_cut":0,"cells_raw":0,"read":"whole","date_system":"1900"}

{"sheet":"Нужно 200 столбцов","index":0,"n_rows":12,"n_cols":202,"rows_kept":12,"cut":false,"hidden":false,"merged":[]}
["Материал1|","Материал2|","Материал3|","Материал4|","Материал5|","Материал6|","Материал7|","Материал8|","Материал9|","Материал10|","Материал11|","Материал12|","Материал13|","Материал14|","Материал15|","Материал16|","Материал17|","Материал18|","Материал19|","Материал20|","Материал21|","Материал22|","Материал23|","Материал24|","Материал25|","Материал26|","Материал27|","Материал28|","Материал29|","Материал30|","Материал31|","Материал32|","Материал33|","Материал34|","Материал35|","Материал36|","Материал37|","Материал38|","Материал39|","Материал40|","Материал41|","Материал42|","Материал43|","Материал44|","Материал45|","Материал46|","Материал47|","Материал48|","Материал49|","Материал50|","Материал51|","Материал52|","Материал53|","Материал54|","Материал55|","Материал56|","Материал57|","Материал58|","Материал59|","Материал60|","Материал61|","Материал62|","Материал63|","Материал64|","Материал65|","Материал66|","Материал67|","Материал68|","Материал69|","Материал70|","Материал71|","Материал72|","Материал73|","Материал74|","Материал75|","Материал76|","Материал77|","Материал78|","Материал79|","Материал80|","Материал81|","Материал82|","Материал83|","Материал84|","Материал85|","Материал86|","Материал87|","Материал88|","Материал89|","Материал90|","Материал91|","Материал92|","Материал93|","Материал94|","Материал95|","Материал96|","Материал97|","Материал98|","Материал99|","Материал100|","Материал101|","Материал102|","Материал103|","Материал104|","Материал105|","Материал106|","Материал107|","Материал108|","Материал109|","Материал110|","Материал111|","Материал112|","Материал113|","Материал114|","Материал115|","Материал116|","Материал117|","Материал118|","Материал119|","Материал120|","Материал121|","Материал122|","Материал123|","Материал124|","Материал125|","Материал126|","Материал127|","Материал128|","Материал129|","Материал130|","Материал131|","Материал132|","Материал133|","Материал134|","Материал135|","Материал136|","Материал137|","Материал138|","Материал139|","Материал140|","Материал141|","Материал142|","Материал143|","Материал144|","Материал145|","Материал146|","Материал147|","Материал148|","Материал149|","Материал150|","Материал151|","Материал152|","Материал153|","Материал154|","Материал155|","Материал156|","Материал157|","Материал158|","Материал159|","Материал160|","Материал161|","Материал162|","Материал163|","Материал164|","Материал165|","Материал166|","Материал167|","Материал168|","Материал169|","Материал170|","Материал171|","Материал172|","Материал173|","Материал174|","Материал175|","Материал176|","Материал177|","Материал178|","Материал179|","Материал180|","Материал181|","Материал182|","Материал183|","Материал184|","Материал185|","Материал186|","Материал187|","Материал188|","Материал189|","Материал190|","Материал191|","Материал192|","Материал193|","Материал194|","Материал195|","Материал196|","Материал197|","Материал198|","Материал199|","Материал200|",null,"Нужно в одну ячейку"]
["Cezares","Royal Palace","Италия","Royal Palace","\nДвухрежимная арматура 3/6 литров GEBERIT\nДюропластовое сидение, оснащенное механизмом плавного закрывания Microlift\nСмыв по всему периметру чаши унитаза\nБесшумное наполнение, нижний подвод воды к бачку","Описание\nДвухрежимная арматура 3/6 литров GEBERIT\nДюропластовое сидение, оснащенное механизмом плавного закрывания Microlift\nСмыв по всему периметру чаши унитаза\nБесшумное наполнение, нижний подвод воды к бачку",20960,"211446674_32.jpg","211446674_32-2.jpg","211446674_32-3.jpg","211446674_32-4.jpg","210152916_67-5.jpg","BB6400500000000","приставной (бачок в стене)","есть","нет","горизонтальный (в стену)","фарфор","да","дюропласт, дерево",36.5,55.5,40.5,42.5,"бытовая","в стену (скрытый)",42069,"снизу бачка","душевой слив (воронка-водоворот)","определяется механизмом системы инсталляции","определяется системой инсталляции","овальная","нет","ретро","белый","белый, под дерево","есть, уже установлено","нет, установка не предусмотрена","встроенное сиденье","15 лет","Италия","для ванн Petit","подлокотники","хром, кристалл","bianco perla frassinato","220-230","нет","напольный",56,"любое, по желанию","пристенная","стандартное",5.2,0.5,"установка по желанию","гидромассаж спины, гидромассаж боковой, гидромассаж ног",6,12,2,1,"есть, приобретаются отдельно","есть, приобретаются отдельно","нет, установка на каркас не предусмотрена","есть, приобретается отдельно","нет, приобретается отдельно",220,"нет","правая","установка по желанию","установка по желанию",null,"установка по желанию","установка по желанию",12,"ручки и ножки","нет","ванн Riho серий Delta, Carolina, Columbia, Alberta, Calgary, Columbia, Future, Genova, Daytona, Julia, Klassik, Lima, Livorno, Lusso, Miam, Modena, Montreal, Orion, Ottawa, Pegas, Seth, Supreme, Lyra, Taurus, Tofield, Virgo, Winnipeg, Parson, Castor, Pasadena, Cantara и ванн Vagnerplast серий Briana, Cavallo, Gaia, Charitka, Minerva, Kasandra, Kleopatra, Hera, Casablanca, Veronela, Nymfa, Penelope",14,103,"массив ореха","массив лиственных деревьев","округлая","белый","с ящиками","нет","искусственный мрамор","керамическая кран-букса","фарфор","полукруглая","белый",1,"нет","нет","белый",6,"раздвижная",2,"серый","акрил","прозрачное","хром","алюминий","стекло","низкий","белый","нет, приобретается отдельно","да","для биде","Cezares","Royal Palace","Италия","Royal Palace","\nДвухрежимная арматура 3/6 литров GEBERIT\nДюропластовое сидение, оснащенное механизмом плавного закрывания Microlift\nСмыв по всему периметру чаши унитаза\nБесшумное наполнение, нижний подвод воды к бачку","Описание\nДвухрежимная арматура 3/6 литров GEBERIT\nДюропластовое сидение, оснащенное механизмом плавного закрывания Microlift\nСмыв по всему периметру чаши унитаза\nБесшумное наполнение, нижний подвод воды к бачку",20960,"211446674_32.jpg","211446674_32-2.jpg","211446674_32-3.jpg","211446674_32-4.jpg","210152916_67-5.jpg","BB6400500000000","приставной (бачок в стене)","есть","нет","горизонтальный (в стену)","фарфор","да","дюропласт, дерево",36.5,55.5,40.5,42.5,"бытовая","в стену (скрытый)",42069,"снизу бачка","душевой слив (воронка-водоворот)","определяется механизмом системы инсталляции","определяется системой инсталляции","овальная","нет","ретро","белый","белый, под дерево","есть, уже установлено","нет, установка не предусмотрена","встроенное сиденье","15 лет","Италия","для ванн Petit","подлокотники","хром, кристалл","bianco perla frassinato","220-230","нет","напольный",56,"любое, по желанию","пристенная","стандартное",5.2,0.5,"установка по желанию","гидромассаж спины, гидромассаж боковой, гидромассаж ног",6,12,2,1,"есть, приобретаются отдельно","есть, приобретаются отдельно","нет, установка на каркас не предусмотрена","есть, приобретается отдельно","нет, приобретается отдельно",220,"нет","правая","установка по желанию","установка по желанию",null,"установка по желанию","установка по желанию",12,"ручки и ножки","нет","ванн Riho серий Delta, Carolina, Columbia, Alberta, Calgary, Columbia, Future, Genova, Daytona, Julia, Klassik, Lima, Livorno, Lusso, Miam, Modena, Montreal, Orion, Ottawa, Pegas, Seth, Supreme, Lyra, Taurus, Tofield, Virgo, Winnipeg, Parson, Castor, Pasadena, Cantara и ванн Vagnerplast серий Briana, Cavallo, Gaia, Charitka, Minerva, Kasandra, Kleopatra, Hera, Casablanca, Veronela, Nymfa, Penelope",14,103,"массив ореха","массив лиственных деревьев","округлая","белый","с ящиками","нет","искусственный мрамор","керамическая кран-букса","фарфор","полукруглая","белый",1,"нет",null,{"$f":"cc($A$1:$GR$1,$A2:$GR2)","v":"Материал1|Cezares\nМатериал2|Royal Palace\nМатериал3|Италия\nМатериал4|Royal Palace\nМатериал5|\nДвухрежимная арматура 3/6 литров GEBERIT\nДюропластовое сидение, оснащенное механизмом плавного закрывания Microlift\nСмыв по всему периметру чаши унитаза\nБесшумное наполнение, нижний подвод воды к бачку\nМатериал6|Описание\nДвухрежимная арматура 3/6 литров GEBERIT\nДюропластовое сидение, оснащенное механизмом плавного закрывания Microlift\nСмыв по всему периметру чаши унитаза\nБесшумное наполнение, нижний подвод воды к бачку\nМатериал7|20960\nМатериал8|211446674_32.jpg\nМатериал9|211446674_32-2.jpg\nМатериал10|211446674_32-3.jpg\nМатериал11|211446674_32-4.jpg\nМатериал12|210152916_67-5.jpg\nМатериал13|BB6400500000000\nМатериал14|приставной (бачок в стене)\nМатериал15|есть\nМатериал16|нет\nМатериал17|горизонтальный (в стену)\nМатериал18|фарфор\nМатериал19|да\nМатериал20|дюропласт, дерево\nМатериал21|36,5\nМатериал22|55,5\nМатериал23|40,5\nМатериал24|42,5\nМатериал25|бытовая\nМатериал26|в стену (скрытый)\nМатериал27|42069\nМатериал28|снизу бачка\nМатериал29|душевой слив (воронка-водоворот)\nМатериал30|определяется механизмом системы инсталляции\nМатериал31|определяется системой инсталляции\nМатериал32|овальная\nМатериал33|нет\nМатериал34|ретро\nМатериал35|белый\nМатериал36|белый, под дерево\nМатериал37|есть, уже установлено\nМатериал38|нет, установка не предусмотрена\nМатериал39|встроенное сиденье\nМатериал40|15 лет\nМатериал41|Италия\nМатериал42|для ванн Petit\nМатериал43|подлокотники\nМатериал44|хром, кристалл\nМатериал45|bianco perla frassinato\nМатериал46|220-230\nМатериал47|нет\nМатериал48|напольный\nМатериал49|56\nМатериал50|любое, по желанию\nМатериал51|пристенная\nМатериал52|стандартное\nМатериал53|5,2\nМатериал54|0,5\nМатериал55|установка по желанию\nМатериал56|гидромассаж спины, гидромассаж боковой, гидромассаж ног\nМатериал57|6\nМатериал58|12\nМатериал59|2\nМатериал60|1\nМатериал61|есть, приобретаются отдельно\nМатериал62|есть, приобретаются отдельно\nМатериал63|нет, установка на каркас не предусмотрена\nМатериал64|есть, приобретается отдельно\nМатериал65|нет, приобретается отдельно\nМатериал66|220\nМатериал67|нет\nМатериал68|правая\nМатериал69|установка по желанию\nМатериал70|установка по желанию\nМатериал71|\nМатериал72|установка по желанию\nМатериал73|установка по желанию\nМатериал74|12\nМатериал75|ручки и ножки\nМатериал76|нет\nМатериал77|ванн Riho серий Delta, Carolina, Columbia, Alberta, Calgary, Columbia, Future, Genova, Daytona, Julia, Klassik, Lima, Livorno, Lusso, Miam, Modena, Montreal, Orion, Ottawa, Pegas, Seth, Supreme, Lyra, Taurus, Tofield, Virgo, Winnipeg, Parson, Castor, Pasadena, Cantara и ванн Vagnerplast серий Briana, Cavallo, Gaia, Charitka, Minerva, Kasandra, Kleopatra, Hera, Casablanca, Veronela, Nymfa, Penelope\nМатериал78|14\nМатериал79|103\nМатериал80|массив ореха\nМатериал81|массив лиственных деревьев\nМатериал82|округлая\nМатериал83|белый\nМатериал84|с ящиками\nМатериал85|нет\nМатериал86|искусственный мрамор\nМатериал87|керамическая кран-букса\nМатериал88|фарфор\nМатериал89|полукруглая\nМатериал90|белый\nМатериал91|1\nМатериал92|нет\nМатериал93|нет\nМатериал94|белый\nМатериал95|6\nМатериал96|раздвижная\nМатериал97|2\nМатериал98|серый\nМатериал99|акрил\nМатериал100|прозрачное\nМатериал101|хром\nМатериал102|алюминий\nМатериал103|стекло\nМатериал104|низкий\nМатериал105|белый\nМатериал106|нет, приобретается отдельно\nМатериал107|да\nМатериал108|для биде\nМатериал109|Cezares\nМатериал110|Royal Palace\nМатериал111|Италия\nМатериал112|Royal Palace\nМатериал113|\nДвухрежимная арматура 3/6 литров GEBERIT\nДюропластовое сидение, оснащенное механизмом плавного закрывания Microlift\nСмыв по всему периметру чаши унитаза\nБесшумное наполнение, нижний подвод воды к бачку\nМатериал114|Описание\nДвухрежимная арматура 3/6 литров GEBERIT\nДюропластовое сидение, оснащенное механизмом плавного закрывания Microlift\nСмыв по всему периметру чаши унитаза\nБесшумное наполнение, нижний подвод воды к бачку\nМатериал115|20960\nМатериал116|211446674_32.jpg\nМатериал117|211446674_32-2.jpg\nМатериал118|211446674_32-3.jpg\nМатериал119|211446674_32-4.jpg\nМатериал120|210152916_67-5.jpg\nМатериал121|BB6400500000000\nМатериал122|приставной (бачок в стене)\nМатериал123|есть\nМатериал124|нет\nМатериал125|горизонтальный (в стену)\nМатериал126|фарфор\nМатериал127|да\nМатериал128|дюропласт, дерево\nМатериал129|36,5\nМатериал130|55,5\nМатериал131|40,5\nМатериал132|42,5\nМатериал133|бытовая\nМатериал134|в стену (скрытый)\nМатериал135|42069\nМатериал136|снизу бачка\nМатериал137|душевой слив (воронка-водоворот)\nМатериал138|определяется механизмом системы инсталляции\nМатериал139|определяется системой инсталляции\nМатериал140|овальная\nМатериал141|нет\nМатериал142|ретро\nМатериал143|белый\nМатериал144|белый, под дерево\nМатериал145|есть, уже установлено\nМатериал146|нет, установка не предусмотрена\nМатериал147|встроенное сиденье\nМатериал148|15 лет\nМатериал149|Италия\nМатериал150|для ванн Petit\nМатериал151|подлокотники\nМатериал152|хром, кристалл\nМатериал153|bianco perla frassinato\nМатериал154|220-230\nМатериал155|нет\nМатериал156|напольный\nМатериал157|56\nМатериал158|любое, по желанию\nМатериал159|пристенная\nМатериал160|стандартное\nМатериал161|5,2\nМатериал162|0,5\nМатериал163|установка по желанию\nМатериал164|гидромассаж спины, гидромассаж боковой, гидромассаж ног\nМатериал165|6\nМатериал166|12\nМатериал167|2\nМатериал168|1\nМатериал169|есть, приобретаются отдельно\nМатериал170|есть, приобретаются отдельно\nМатериал171|нет, установка на каркас не предусмотрена\nМатериал172|есть, приобретается отдельно\nМатериал173|нет, приобретается отдельно\nМатериал174|220\nМатериал175|нет\nМатериал176|правая\nМатериал177|установка по желанию\nМатериал178|установка по желанию\nМатериал179|\nМатериал180|установка по желанию\nМатериал181|установка по желанию\nМатериал182|12\nМатериал183|ручки и ножки\nМатериал184|нет\nМатериал185|ванн Riho серий Delta, Carolina, Columbia, Alberta, Calgary, Columbia, Future, Genova, Daytona, Julia, Klassik, Lima, Livorno, Lusso, Miam, Modena, Montreal, Orion, Ottawa, Pegas, Seth, Supreme, Lyra, Taurus, Tofield, Virgo, Winnipeg, Parson, Castor, Pasadena, Cantara и ванн Vagnerplast серий Briana, Cavallo, Gaia, Charitka, Minerva, Kasandra, Kleopatra, Hera, Casablanca, Veronela, Nymfa, Penelope\nМатериал186|14\nМатериал187|103\nМатериал188|массив ореха\nМатериал189|массив лиственных деревьев\nМатериал190|округлая\nМатериал191|белый\nМатериал192|с ящиками\nМатериал193|нет\nМатериал194|искусственный мрамор\nМатериал195|керамическая кран-букса\nМатериал196|фарфор\nМатериал197|полукруглая\nМатериал198|белый\nМатериал199|1\nМатериал200|нет"}]
["Cezares","Laredo","Италия","Laredo","\nДвухрежимная арматура 3/6 литров GEBERIT\nДюропластовое сидение, оснащенное механизмом плавного\nзакрывания Microlift\nСмыв по всему периметру чаши унитаза\nБесшумное наполнение, нижний подвод воды к бачку","Описание\nДвухрежимная арматура 3/6 литров GEBERIT\nДюропластовое сидение, оснащенное механизмом плавного\nзакрывания Microlift\nСмыв по всему периметру чаши унитаза\nБесшумное наполнение, нижний подвод воды к бачку",36080,"210152916_67.jpg","210152916_67-2.jpg","210152916_67-3.jpg","210152916_67-4.jpg","210116438_545-4.jpg","BC3500500000000","напольный унитаз-компакт","есть","нет","горизонтальный (в стену)","фарфор","да","дюропласт, дерево",38,64,82,45,"бытовая","поверх унитаза",42069,"снизу бачка","душевой слив (воронка-водоворот)","две кнопки (режим эконом)","механическая кнопка","овальная","нет","ретро","белый","белый, под дерево","установка по желанию","нет, установка не предусмотрена","встроенное сиденье","15 лет","Италия","75 таблеток","подлокотники","хром, кристалл","bianco perla frassinato","220-230","нет","напольный",56,"любое, по желанию","пристенная","по центру",5.2,0.5,"установка по желанию","гидромассаж спины, гидромассаж боковой, гидромассаж ног",14,6,2,1,"есть, приобретаются отдельно","есть, приобретаются отдельно","нет, установка на каркас не предусмотрена","есть, приобретается отдельно","нет, приобретается отдельно",365,"нет","правая","установка по желанию","установка по желанию",null,"установка по желанию","установка по желанию",12,"системы гидромассажа","нет","ванн Riho Lima",14,90,"массив ореха","массив лиственных деревьев","округлая","белый","с ящиками","нет","искусственный мрамор","керамический картридж","фарфор","полукруглая","белый",1,"нет","нет","белый",8,"раздвижная",2,"серый","акрил","прозрачное","хром","алюминий","стекло","низкий","белый","нет, приобретается отдельно","да","для душа","Cezares","Laredo","Италия","Laredo","\nДвухрежимная арматура 3/6 литров GEBERIT\nДюропластовое сидение, оснащенное механизмом плавного\nзакрывания Microlift\nСмыв по всему периметру чаши унитаза\nБесшумное наполнение, нижний подвод воды к бачку","Описание\nДвухрежимная арматура 3/6 литров GEBERIT\nДюропластовое сидение, оснащенное механизмом плавного\nзакрывания Microlift\nСмыв по всему периметру чаши унитаза\nБесшумное наполнение, нижний подвод воды к бачку",36080,"210152916_67.jpg","210152916_67-2.jpg","210152916_67-3.jpg","210152916_67-4.jpg","210116438_545-4.jpg","BC3500500000000","напольный унитаз-компакт","есть","нет","горизонтальный (в стену)","фарфор","да","дюропласт, дерево",38,64,82,45,"бытовая","поверх унитаза",42069,"снизу бачка","душевой слив (воронка-водоворот)","две кнопки (режим эконом)","механическая кнопка","овальная","нет","ретро","белый","белый, под дерево","установка по желанию","нет, установка не предусмотрена","встроенное сиденье","15 лет","Италия","75 таблеток","подлокотники","хром, кристалл","bianco perla frassinato","220-230","нет","напольный",56,"любое, по желанию","пристенная","по центру",5.2,0.5,"установка по желанию","гидромассаж спины, гидромассаж боковой, гидромассаж ног",14,6,2,1,"есть, приобретаются отдельно","есть, приобретаются отдельно","нет, установка на каркас не предусмотрена","есть, приобретается отдельно","нет, приобретается отдельно",365,"нет","правая","установка по желанию","установка по желанию",null,"установка по желанию","установка по желанию",12,"системы гидромассажа","нет","ванн Riho Lima",14,90,"массив ореха","массив лиственных деревьев","округлая","белый","с ящиками","нет","искусственный мрамор","керамический картридж","фарфор","полукруглая","белый",1,"нет",null,{"$f":"cc($A$1:$GR$1,$A3:$GR3)","v":"Материал1|Cezares\nМатериал2|Laredo\nМатериал3|Италия\nМатериал4|Laredo\nМатериал5|\nДвухрежимная арматура 3/6 литров GEBERIT\nДюропластовое сидение, оснащенное механизмом плавного\nзакрывания Microlift\nСмыв по всему периметру чаши унитаза\nБесшумное наполнение, нижний подвод воды к бачку\nМатериал6|Описание\nДвухрежимная арматура 3/6 литров GEBERIT\nДюропластовое сидение, оснащенное механизмом плавного\nзакрывания Microlift\nСмыв по всему периметру чаши унитаза\nБесшумное наполнение, нижний подвод воды к бачку\nМатериал7|36080\nМатериал8|210152916_67.jpg\nМатериал9|210152916_67-2.jpg\nМатериал10|210152916_67-3.jpg\nМатериал11|210152916_67-4.jpg\nМатериал12|210116438_545-4.jpg\nМатериал13|BC3500500000000\nМатериал14|напольный унитаз-компакт\nМатериал15|есть\nМатериал16|нет\nМатериал17|горизонтальный (в стену)\nМатериал18|фарфор\nМатериал19|да\nМатериал20|дюропласт, дерево\nМатериал21|38\nМатериал22|64\nМатериал23|82\nМатериал24|45\nМатериал25|бытовая\nМатериал26|поверх унитаза\nМатериал27|42069\nМатериал28|снизу бачка\nМатериал29|душевой слив (воронка-водоворот)\nМатериал30|две кнопки (режим эконом)\nМатериал31|механическая кнопка\nМатериал32|овальная\nМатериал33|нет\nМатериал34|ретро\nМатериал35|белый\nМатериал36|белый, под дерево\nМатериал37|установка по желанию\nМатериал38|нет, установка не предусмотрена\nМатериал39|встроенное сиденье\nМатериал40|15 лет\nМатериал41|Италия\nМатериал42|75 таблеток\nМатериал43|подлокотники\nМатериал44|хром, кристалл\nМатериал45|bianco perla frassinato\nМатериал46|220-230\nМатериал47|нет\nМатериал48|напольный\nМатериал49|56\nМатериал50|любое, по желанию\nМатериал51|пристенная\nМатериал52|по центру\nМатериал53|5,2\nМатериал54|0,5\nМатериал55|установка по желанию\nМатериал56|гидромассаж спины, гидромассаж боковой, гидромассаж ног\nМатериал57|14\nМатериал58|6\nМатериал59|2\nМатериал60|1\nМатериал61|есть, приобретаются отдельно\nМатериал62|есть, приобретаются отдельно\nМатериал63|нет, установка на каркас не предусмотрена\nМатериал64|есть, приобретается отдельно\nМатериал65|нет, приобретается отдельно\nМатериал66|365\nМатериал67|нет\nМатериал68|правая\nМатериал69|установка по желанию\nМатериал70|установка по желанию\nМатериал71|\nМатериал72|установка по желанию\nМатериал73|установка по желанию\nМатериал74|12\nМатериал75|системы гидромассажа\nМатериал76|нет\nМатериал77|ванн Riho Lima\nМатериал78|14\nМатериал79|90\nМатериал80|массив ореха\nМатериал81|массив лиственных деревьев\nМатериал82|округлая\nМатериал83|белый\nМатериал84|с ящиками\nМатериал85|нет\nМатериал86|искусственный мрамор\nМатериал87|керамический картридж\nМатериал88|фарфор\nМатериал89|полукруглая\nМатериал90|белый\nМатериал91|1\nМатериал92|нет\nМатериал93|нет\nМатериал94|белый\nМатериал95|8\nМатериал96|раздвижная\nМатериал97|2\nМатериал98|серый\nМатериал99|акрил\nМатериал100|прозрачное\nМатериал101|хром\nМатериал102|алюминий\nМатериал103|стекло\nМатериал104|низкий\nМатериал105|белый\nМатериал106|нет, приобретается отдельно\nМатериал107|да\nМатериал108|для душа\nМатериал109|Cezares\nМатериал110|Laredo\nМатериал111|Италия\nМатериал112|Laredo\nМатериал113|\nДвухрежимная арматура 3/6 литров GEBERIT\nДюропластовое сидение, оснащенное механизмом плавного\nзакрывания Microlift\nСмыв по всему периметру чаши унитаза\nБесшумное наполнение, нижний подвод воды к бачку\nМатериал114|Описание\nДвухрежимная арматура 3/6 литров GEBERIT\nДюропластовое сидение, оснащенное механизмом плавного\nзакрывания Microlift\nСмыв по всему периметру чаши унитаза\nБесшумное наполнение, нижний подвод воды к бачку\nМатериал115|36080\nМатериал116|210152916_67.jpg\nМатериал117|210152916_67-2.jpg\nМатериал118|210152916_67-3.jpg\nМатериал119|210152916_67-4.jpg\nМатериал120|210116438_545-4.jpg\nМатериал121|BC3500500000000\nМатериал122|напольный унитаз-компакт\nМатериал123|есть\nМатериал124|нет\nМатериал125|горизонтальный (в стену)\nМатериал126|фарфор\nМатериал127|да\nМатериал128|дюропласт, дерево\nМатериал129|38\nМатериал130|64\nМатериал131|82\nМатериал132|45\nМатериал133|бытовая\nМатериал134|поверх унитаза\nМатериал135|42069\nМатериал136|снизу бачка\nМатериал137|душевой слив (воронка-водоворот)\nМатериал138|две кнопки (режим эконом)\nМатериал139|механическая кнопка\nМатериал140|овальная\nМатериал141|нет\nМатериал142|ретро\nМатериал143|белый\nМатериал144|белый, под дерево\nМатериал145|установка по желанию\nМатериал146|нет, установка не предусмотрена\nМатериал147|встроенное сиденье\nМатериал148|15 лет\nМатериал149|Италия\nМатериал150|75 таблеток\nМатериал151|подлокотники\nМатериал152|хром, кристалл\nМатериал153|bianco perla frassinato\nМатериал154|220-230\nМатериал155|нет\nМатериал156|напольный\nМатериал157|56\nМатериал158|любое, по желанию\nМатериал159|пристенная\nМатериал160|по центру\nМатериал161|5,2\nМатериал162|0,5\nМатериал163|установка по желанию\nМатериал164|гидромассаж спины, гидромассаж боковой, гидромассаж ног\nМатериал165|14\nМатериал166|6\nМатериал167|2\nМатериал168|1\nМатериал169|есть, приобретаются отдельно\nМатериал170|есть, приобретаются отдельно\nМатериал171|нет, установка на каркас не предусмотрена\nМатериал172|есть, приобретается отдельно\nМатериал173|нет, приобретается отдельно\nМатериал174|365\nМатериал175|нет\nМатериал176|правая\nМатериал177|установка по желанию\nМатериал178|установка по желанию\nМатериал179|\nМатериал180|установка по желанию\nМатериал181|установка по желанию\nМатериал182|12\nМатериал183|системы гидромассажа\nМатериал184|нет\nМатериал185|ванн Riho Lima\nМатериал186|14\nМатериал187|90\nМатериал188|массив ореха\nМатериал189|массив лиственных деревьев\nМатериал190|округлая\nМатериал191|белый\nМатериал192|с ящиками\nМатериал193|нет\nМатериал194|искусственный мрамор\nМатериал195|керамический картридж\nМатериал196|фарфор\nМатериал197|полукруглая\nМатериал198|белый\nМатериал199|1\nМатериал200|нет"}]
["Cezares","Prati","Италия","Prati-A","\nЧешские ванны Riho известны своими практичностью и\nдолговечностью. В производстве использован сантехнический акрил\nбританской марки «Lucite». Среди прочих достоинств ванн Riho можно\nотметить антибактериальное покрытие «Microbian», а также не\nтускнеющий со временем цвет «Euro white».","Описание\nЧешские ванны Riho известны своими практичностью и\nдолговечностью. В производстве использован сантехнический акрил\nбританской марки «Lucite». Среди прочих достоинств ванн Riho можно\nотметить антибактериальное покрытие «Microbian», а также не\nтускнеющий со временем цвет «Euro white». Лаконичный дизайн модели\nMiami придется по вкусу любителям классики.",28430,"210156371_189.jpg","210156371_189-2.jpg","210156371_189-3.jpg","210156371_189-4.jpg","210172324_737-5.jpg","BC3400500000000","напольный унитаз-компакт","есть","нет","горизонтальный (в стену)","фарфор","да","дюропласт",36,67,83,40,"бытовая","поверх унитаза",42069,"снизу бачка","душевой слив (воронка-водоворот)","две кнопки (режим эконом)","механическая кнопка","прямоугольная","нет","hi-tech","белый","белый","есть, уже установлено","нет, установка не предусмотрена","встроенное сиденье","15 лет","Италия","объем 1 литр","подлокотники","бронза","noce","220-230","нет","напольный",51,"любое, по желанию","пристенная","по центру",5.2,0.5,"установка по желанию","гидромассаж спины, гидромассаж боковой, гидромассаж ног",14,6,2,1,"есть, приобретаются отдельно","есть, приобретаются отдельно","нет, установка на каркас не предусмотрена","есть, приобретается отдельно","нет, приобретается отдельно",290,"нет","левая","установка по желанию","установка по желанию",null,"установка по желанию","установка по желанию",12,"системы гидромассажа","нет","ванн Riho Delta",14,68.5,"массив ореха","массив лиственных деревьев","округлая","темное дерево","с дверками","нет","натуральный мрамор","керамический картридж","полимерная керамика","полукруглая","белый",3,"нет","нет",null,8,"раздвижная",2,"серый","акрил","рифленое","хром","алюминий","стекло","низкий","белый","нет, приобретается отдельно","да","для раковины","Cezares","Prati","Италия","Prati-A","\nЧешские ванны Riho известны своими практичностью и\nдолговечностью. В производстве использован сантехнический акрил\nбританской марки «Lucite». Среди прочих достоинств ванн Riho можно\nотметить антибактериальное покрытие «Microbian», а также не\nтускнеющий со временем цвет «Euro white».","Описание\nЧешские ванны Riho известны своими практичностью и\nдолговечностью. В производстве использован сантехнический акрил\nбританской марки «Lucite». Среди прочих достоинств ванн Riho можно\nотметить антибактериальное покрытие «Microbian», а также не\nтускнеющий со временем цвет «Euro white». Лаконичный дизайн модели\nMiami придется по вкусу любителям классики.",28430,"210156371_189.jpg","210156371_189-2.jpg","210156371_189-3.jpg","210156371_189-4.jpg","210172324_737-5.jpg","BC3400500000000","напольный унитаз-компакт","есть","нет","горизонтальный (в стену)","фарфор","да","дюропласт",36,67,83,40,"бытовая","поверх унитаза",42069,"снизу бачка","душевой слив (воронка-водоворот)","две кнопки (режим эконом)","механическая кнопка","прямоугольная","нет","hi-tech","белый","белый","есть, уже установлено","нет, установка не предусмотрена","встроенное сиденье","15 лет","Италия","объем 1 литр","подлокотники","бронза","noce","220-230","нет","напольный",51,"любое, по желанию","пристенная","по центру",5.2,0.5,"установка по желанию","гидромассаж спины, гидромассаж боковой, гидромассаж ног",14,6,2,1,"есть, приобретаются отдельно","есть, приобретаются отдельно","нет, установка на каркас не предусмотрена","есть, приобретается отдельно","нет, приобретается отдельно",290,"нет","левая","установка по желанию","установка по желанию",null,"установка по желанию","установка по желанию",12,"системы гидромассажа","нет","ванн Riho Delta",14,68.5,"массив ореха","массив лиственных деревьев","округлая","темное дерево","с дверками","нет","натуральный мрамор","керамический картридж","полимерная керамика","полукруглая","белый",3,"нет",null,"Материал1|Cezares\nМатериал2|Prati\nМатериал3|Италия\nМатериал4|Prati-A\nМатериал5|\nЧешские ванны Riho известны своими практичностью и\nдолговечностью. В производстве использован сантехнический акрил\nбританской марки «Lucite». Среди прочих достоинств ванн Riho можно\nотметить антибактериальное покрытие «Microbian», а также не\nтускнеющий со временем цвет «Euro white».\nМатериал6|Описание\nЧешские ванны Riho известны своими практичностью и\nдолговечностью. В производстве использован сантехнический акрил\nбританской марки «Lucite». Среди прочих достоинств ванн Riho можно\nотметить антибактериальное покрытие «Microbian», а также не\nтускнеющий со временем цвет «Euro white». Лаконичный дизайн модели\nMiami придется по вкусу любителям классики.\nМатериал7|28430\nМатериал8|210156371_189.jpg\nМатериал9|210156371_189-2.jpg\nМатериал10|210156371_189-3.jpg\nМатериал11|210156371_189-4.jpg\nМатериал12|210172324_737-5.jpg\nМатериал13|BC3400500000000\nМатериал14|напольный унитаз-компакт\nМатериал15|есть\nМатериал16|нет\nМатериал17|горизонтальный (в стену)\nМатериал18|фарфор\nМатериал19|да\nМатериал20|дюропласт\nМатериал21|36\nМатериал22|67\nМатериал23|83\nМатериал24|40\nМатериал25|бытовая\nМатериал26|поверх унитаза\nМатериал27|42069\nМатериал28|снизу бачка\nМатериал29|душевой слив (воронка-водоворот)\nМатериал30|две кнопки (режим эконом)\nМатериал31|механическая кнопка\nМатериал32|прямоугольная\nМатериал33|нет\nМатериал34|hi-tech\nМатериал35|белый\nМатериал36|белый\nМатериал37|есть, уже установлено\nМатериал38|нет, установка не предусмотрена\nМатериал39|встроенное сиденье\nМатериал40|15 лет\nМатериал41|Италия\nМатериал42|объем 1 литр\nМатериал43|подлокотники\nМатериал44|бронза\nМатериал45|noce\nМатериал46|220-230\nМатериал47|нет\nМатериал48|напольный\nМатериал49|51\nМатериал50|любое, по желанию\nМатериал51|пристенная\nМатериал52|по центру\nМатериал53|5,2\nМатериал54|0,5\nМатериал55|установка по желанию\nМатериал56|гидромассаж спины, гидромассаж боковой, гидромассаж ног\nМатериал57|14\nМатериал58|6\nМатериал59|2\nМатериал60|1\nМатериал61|есть, приобретаются отдельно\nМатериал62|есть, приобретаются отдельно\nМатериал63|нет, установка на каркас не предусмотрена\nМатериал64|есть, приобретается отдельно\nМатериал65|нет, приобретается отдельно\nМатериал66|290\nМатериал67|нет\nМатериал68|левая\nМатериал69|установка по желанию\nМатериал70|установка по желанию\nМатериал71|\nМатериал72|установка по желанию\nМатериал73|установка по желанию\nМатериал74|12\nМатериал75|системы гидромассажа\nМатериал76|нет\nМатериал77|ванн Riho Delta\nМатериал78|14\nМатериал79|68,5\nМатериал80|массив ореха\nМатериал81|массив лиственных деревьев\nМатериал82|округлая\nМатериал83|темное дерево\nМатериал84|с дверками\nМатериал85|нет\nМатериал86|натуральный мрамор\nМатериал87|керамический картридж\nМатериал88|полимерная керамика\nМатериал89|полукруглая\nМатериал90|белый\nМатериал91|3\nМатериал92|нет\nМатериал93|нет\nМатериал94|\nМатериал95|8\nМатериал96|раздвижная\nМатериал97|2\nМатериал98|серый\nМатериал99|акрил\nМатериал100|рифленое\nМатериал101|хром\nМатериал102|алюминий\nМатериал103|стекло\nМатериал104|низкий\nМатериал105|белый\nМатериал106|нет, приобретается отдельно\nМатериал107|да\nМатериал108|для раковины\nМатериал109|Cezares\nМатериал110|Prati\nМатериал111|Италия\nМатериал112|Prati-A\nМатериал113|\nЧешские ванны Riho известны своими практичностью и\nдолговечностью. В производстве использован сантехнический акрил\nбританской марки «Lucite». Среди прочих достоинств ванн Riho можно\nотметить антибактериальное покрытие «Microbian», а также не\nтускнеющий со временем цвет «Euro white».\nМатериал114|Описание\nЧешские ванны Riho известны своими практичностью и\nдолговечностью. В производстве использован сантехнический акрил\nбританской марки «Lucite». Среди прочих достоинств ванн Riho можно\nотметить антибактериальное покрытие «Microbian», а также не\nтускнеющий со временем цвет «Euro white». Лаконичный дизайн модели\nMiami придется по вкусу любителям классики.\nМатериал115|28430\nМатериал116|210156371_189.jpg\nМатериал117|210156371_189-2.jpg\nМатериал118|210156371_189-3.jpg\nМатериал119|210156371_189-4.jpg\nМатериал120|210172324_737-5.jpg\nМатериал121|BC3400500000000\nМатериал122|напольный унитаз-компакт\nМатериал123|есть\nМатериал124|нет\nМатериал125|горизонтальный (в стену)\nМатериал126|фарфор\nМатериал127|да\nМатериал128|дюропласт\nМатериал129|36\nМатериал130|67\nМатериал131|83\nМатериал132|40\nМатериал133|бытовая\nМатериал134|поверх унитаза\nМатериал135|42069\nМатериал136|снизу бачка\nМатериал137|душевой слив (воронка-водоворот)\nМатериал138|две кнопки (режим эконом)\nМатериал139|механическая кнопка\nМатериал140|прямоугольная\nМатериал141|нет\nМатериал142|hi-tech\nМатериал143|белый\nМатериал144|белый\nМатериал145|есть, уже установлено\nМатериал146|нет, установка не предусмотрена\nМатериал147|встроенное сиденье\nМатериал148|15 лет\nМатериал149|Италия\nМатериал150|объем 1 литр\nМатериал151|подлокотники\nМатериал152|бронза\nМатериал153|noce\nМатериал154|220-230\nМатериал155|нет\nМатериал156|напольный\nМатериал157|51\nМатериал158|любое, по желанию\nМатериал159|пристенная\nМатериал160|по центру\nМатериал161|5,2\nМатериал162|0,5\nМатериал163|установка по желанию\nМатериал164|гидромассаж спины, гидромассаж боковой, гидромассаж ног\nМатериал165|14\nМатериал166|6\nМатериал167|2\nМатериал168|1\nМатериал169|есть, приобретаются отдельно\nМатериал170|есть, приобретаются отдельно\nМатериал171|нет, установка на каркас не предусмотрена\nМатериал172|есть, приобретается отдельно\nМатериал173|нет, приобретается отдельно\nМатериал174|290\nМатериал175|нет\nМатериал176|левая\nМатериал177|установка по желанию\nМатериал178|установка по желанию\nМатериал179|\nМатериал180|установка по желанию\nМатериал181|установка по желанию\nМатериал182|12\nМатериал183|системы гидромассажа\nМатериал184|нет\nМатериал185|ванн Riho Delta\nМатериал186|14\nМатериал187|68,5\nМатериал188|массив ореха\nМатериал189|массив лиственных деревьев\nМатериал190|округлая\nМатериал191|темное дерево\nМатериал192|с дверками\nМатериал193|нет\nМатериал194|натуральный мрамор\nМатериал195|керамический картридж\nМатериал196|полимерная керамика\nМатериал197|полукруглая\nМатериал198|белый\nМатериал199|3\nМатериал200|нет"]
["Cezares","King palace","Италия","King Palace","\nВанна RIHO NEO 150 изготовлена из 100 % акрилового листа LUCITE, с добавлением антибактериального свойства MICROBAN.","Описание\nВанна RIHO NEO 150 изготовлена из 100 % акрилового листа LUCITE, с добавлением антибактериального свойства MICROBAN.",36880,"210116438_545.jpg","210116438_545.jpg","210116438_545-2.jpg","210116438_545-3.jpg","35545671_967-5.jpg","BA6300500000000","напольный унитаз-компакт","есть","нет","горизонтальный (в стену)","фарфор","да","дюропласт",43.5,74.5,84.5,40,"бытовая","поверх унитаза",42069,"снизу бачка","душевой слив (воронка-водоворот)","две кнопки (режим эконом)","механическая кнопка","овальная","нет","ретро","белый","белый","установка по желанию","нет, установка не предусмотрена","встроенное сиденье","15 лет","Италия","для ванн  Lugano, Dimaro","подлокотники","хром","bianco frassinato","220-230","нет","напольный",61,"любое, по желанию","пристенная","по центру",5.2,0.5,"установка по желанию","гидромассаж спины, гидромассаж боковой, гидромассаж ног",14,6,2,1,"есть, приобретаются отдельно","есть, приобретаются отдельно","нет, установка на каркас не предусмотрена","есть, приобретается отдельно","нет, приобретается отдельно",280,"нет","правая","установка по желанию","установка по желанию",null,"установка по желанию","установка по желанию",12,"системы гидромассажа","нет","ванн Riho Lusso",14,110,"массив ореха","массив лиственных деревьев","округлая","белый","с дверками","нет","натуральный мрамор","керамический картридж","полимерная керамика","полукруглая","белый",1,"нет","нет",null,8,"раздвижная",2,"серый","акрил","рифленое","хром","алюминий","стекло","низкий","белый","нет, приобретается отдельно","да","для душа","Cezares","King palace","Италия","King Palace","\nВанна RIHO NEO 150 изготовлена из 100 % акрилового листа LUCITE, с добавлением антибактериального свойства MICROBAN.","Описание\nВанна RIHO NEO 150 изготовлена из 100 % акрилового листа LUCITE, с добавлением антибактериального свойства MICROBAN.",36880,"210116438_545.jpg","210116438_545.jpg","210116438_545-2.jpg","210116438_545-3.jpg","35545671_967-5.jpg","BA6300500000000","напольный унитаз-компакт","есть","нет","горизонтальный (в стену)","фарфор","да","дюропласт",43.5,74.5,84.5,40,"бытовая","поверх унитаза",42069,"снизу бачка","душевой слив (воронка-водоворот)","две кнопки (режим эконом)","механическая кнопка","овальная","нет","ретро","белый","белый","установка по желанию","нет, установка не предусмотрена","встроенное сиденье","15 лет","Италия","для ванн  Lugano, Dimaro","подлокотники","хром","bianco frassinato","220-230","нет","напольный",61,"любое, по желанию","пристенная","по центру",5.2,0.5,"установка по желанию","гидромассаж спины, гидромассаж боковой, гидромассаж ног",14,6,2,1,"есть, приобретаются отдельно","есть, приобретаются отдельно","нет, установка на каркас не предусмотрена","есть, приобретается отдельно","нет, приобретается отдельно",280,"нет","правая","установка по желанию","установка по желанию",null,"установка по желанию","установка по желанию",12,"системы гидромассажа","нет","ванн Riho Lusso",14,110,"массив ореха","массив лиственных деревьев","округлая","белый","с дверками","нет","натуральный мрамор","керамический картридж","полимерная керамика","полукруглая","белый",1,"нет",null,"Материал1|Cezares\nМатериал2|King palace\nМатериал3|Италия\nМатериал4|King Palace\nМатериал5|\nВанна RIHO NEO 150 изготовлена из 100 % акрилового листа LUCITE, с добавлением антибактериального свойства MICROBAN.\nМатериал6|Описание\nВанна RIHO NEO 150 изготовлена из 100 % акрилового листа LUCITE, с добавлением антибактериального свойства MICROBAN.\nМатериал7|36880\nМатериал8|210116438_545.jpg\nМатериал9|210116438_545.jpg\nМатериал10|210116438_545-2.jpg\nМатериал11|210116438_545-3.jpg\nМатериал12|35545671_967-5.jpg\nМатериал13|BA6300500000000\nМатериал14|напольный унитаз-компакт\nМатериал15|есть\nМатериал16|нет\nМатериал17|горизонтальный (в стену)\nМатериал18|фарфор\nМатериал19|да\nМатериал20|дюропласт\nМатериал21|43,5\nМатериал22|74,5\nМатериал23|84,5\nМатериал24|40\nМатериал25|бытовая\nМатериал26|поверх унитаза\nМатериал27|42069\nМатериал28|снизу бачка\nМатериал29|душевой слив (воронка-водоворот)\nМатериал30|две кнопки (режим эконом)\nМатериал31|механическая кнопка\nМатериал32|овальная\nМатериал33|нет\nМатериал34|ретро\nМатериал35|белый\nМатериал36|белый\nМатериал37|установка по желанию\nМатериал38|нет, установка не предусмотрена\nМатериал39|встроенное сиденье\nМатериал40|15 лет\nМатериал41|Италия\nМатериал42|для ванн  Lugano, Dimaro\nМатериал43|подлокотники\nМатериал44|хром\nМатериал45|bianco frassinato\nМатериал46|220-230\nМатериал47|нет\nМатериал48|напольный\nМатериал49|61\nМатериал50|любое, по желанию\nМатериал51|пристенная\nМатериал52|по центру\nМатериал53|5,2\nМатериал54|0,5\nМатериал55|установка по желанию\nМатериал56|гидромассаж спины, гидромассаж боковой, гидромассаж ног\nМатериал57|14\nМатериал58|6\nМатериал59|2\nМатериал60|1\nМатериал61|есть, приобретаются отдельно\nМатериал62|есть, приобретаются отдельно\nМатериал63|нет, установка на каркас не предусмотрена\nМатериал64|есть, приобретается отдельно\nМатериал65|нет, приобретается отдельно\nМатериал66|280\nМатериал67|нет\nМатериал68|правая\nМатериал69|установка по желанию\nМатериал70|установка по желанию\nМатериал71|\nМатериал72|установка по желанию\nМатериал73|установка по желанию\nМатериал74|12\nМатериал75|системы гидромассажа\nМатериал76|нет\nМатериал77|ванн Riho Lusso\nМатериал78|14\nМатериал79|110\nМатериал80|массив ореха\nМатериал81|массив лиственных деревьев\nМатериал82|округлая\nМатериал83|белый\nМатериал84|с дверками\nМатериал85|нет\nМатериал86|натуральный мрамор\nМатериал87|керамический картридж\nМатериал88|полимерная керамика\nМатериал89|полукруглая\nМатериал90|белый\nМатериал91|1\nМатериал92|нет\nМатериал93|нет\nМатериал94|\nМатериал95|8\nМатериал96|раздвижная\nМатериал97|2\nМатериал98|серый\nМатериал99|акрил\nМатериал100|рифленое\nМатериал101|хром\nМатериал102|алюминий\nМатериал103|стекло\nМатериал104|низкий\nМатериал105|белый\nМатериал106|нет, приобретается отдельно\nМатериал107|да\nМатериал108|для душа\nМатериал109|Cezares\nМатериал110|King palace\nМатериал111|Италия\nМатериал112|King Palace\nМатериал113|\nВанна RIHO NEO 150 изготовлена из 100 % акрилового листа LUCITE, с добавлением антибактериального свойства MICROBAN.\nМатериал114|Описание\nВанна RIHO NEO 150 изготовлена из 100 % акрилового листа LUCITE, с добавлением антибактериального свойства MICROBAN.\nМатериал115|36880\nМатериал116|210116438_545.jpg\nМатериал117|210116438_545.jpg\nМатериал118|210116438_545-2.jpg\nМатериал119|210116438_545-3.jpg\nМатериал120|35545671_967-5.jpg\nМатериал121|BA6300500000000\nМатериал122|напольный унитаз-компакт\nМатериал123|есть\nМатериал124|нет\nМатериал125|горизонтальный (в стену)\nМатериал126|фарфор\nМатериал127|да\nМатериал128|дюропласт\nМатериал129|43,5\nМатериал130|74,5\nМатериал131|84,5\nМатериал132|40\nМатериал133|бытовая\nМатериал134|поверх унитаза\nМатериал135|42069\nМатериал136|снизу бачка\nМатериал137|душевой слив (воронка-водоворот)\nМатериал138|две кнопки (режим эконом)\nМатериал139|механическая кнопка\nМатериал140|овальная\nМатериал141|нет\nМатериал142|ретро\nМатериал143|белый\nМатериал144|белый\nМатериал145|установка по желанию\nМатериал146|нет, установка не предусмотрена\nМатериал147|встроенное сиденье\nМатериал148|15 лет\nМатериал149|Италия\nМатериал150|для ванн  Lugano, Dimaro\nМатериал151|подлокотники\nМатериал152|хром\nМатериал153|bianco frassinato\nМатериал154|220-230\nМатериал155|нет\nМатериал156|напольный\nМатериал157|61\nМатериал158|любое, по желанию\nМатериал159|пристенная\nМатериал160|по центру\nМатериал161|5,2\nМатериал162|0,5\nМатериал163|установка по желанию\nМатериал164|гидромассаж спины, гидромассаж боковой, гидромассаж ног\nМатериал165|14\nМатериал166|6\nМатериал167|2\nМатериал168|1\nМатериал169|есть, приобретаются отдельно\nМатериал170|есть, приобретаются отдельно\nМатериал171|нет, установка на каркас не предусмотрена\nМатериал172|есть, приобретается отдельно\nМатериал173|нет, приобретается отдельно\nМатериал174|280\nМатериал175|нет\nМатериал176|правая\nМатериал177|установка по желанию\nМатериал178|установка по желанию\nМатериал179|\nМатериал180|установка по желанию\nМатериал181|установка по желанию\nМатериал182|12\nМатериал183|системы гидромассажа\nМатериал184|нет\nМатериал185|ванн Riho Lusso\nМатериал186|14\nМатериал187|110\nМатериал188|массив ореха\nМатериал189|массив лиственных деревьев\nМатериал190|округлая\nМатериал191|белый\nМатериал192|с дверками\nМатериал193|нет\nМатериал194|натуральный мрамор\nМатериал195|керамический картридж\nМатериал196|полимерная керамика\nМатериал197|полукруглая\nМатериал198|белый\nМатериал199|1\nМатериал200|нет"]
["Cezares","Royal Palace","Италия","Royal Palace","\nВанна RIHO NEO 140 изготовлена из 100 % акрилового листа LUCITE, с добавлением антибактериального свойства MICROBAN.","Описание\nВанна RIHO NEO 140 изготовлена из 100 % акрилового листа LUCITE, с добавлением антибактериального свойства MICROBAN.",31840,"210172324_737.jpg","210172324_737-2.jpg","210172324_737-3.jpg","210172324_737-4.jpg","35545668_968-5.jpg","BA6500500000000","напольный унитаз-компакт","есть","нет","вертикальный (в пол), горизонтальный (в стену)","фарфор","да","дюропласт, дерево",45.5,69,84.5,40,"бытовая","поверх унитаза",42069,"снизу бачка","душевой слив (воронка-водоворот)","две кнопки (режим эконом)","механическая кнопка","овальная","нет","ретро","белый","белый, под дерево","есть, уже установлено","нет, установка не предусмотрена","встроенное сиденье","15 лет","Италия","для ванн RIHO Dopio, Modena, Geta, Daytona","подлокотники","бронза","noce","220-230","нет","напольный",56,"любое, по желанию","пристенная","по центру",5.2,0.5,"установка по желанию","гидромассаж спины, гидромассаж боковой, гидромассаж ног",14,6,2,1,"есть, приобретаются отдельно","есть, приобретаются отдельно","нет, установка на каркас не предусмотрена","есть, приобретается отдельно","нет, приобретается отдельно",190,"нет","левая","установка по желанию","установка по желанию",null,"установка по желанию","установка по желанию",12,"системы гидромассажа","нет","ванн Riho Doppio",14,112,"массив ореха","массив лиственных деревьев","округлая","темное дерево","с дверками, с ящиками","нет","искусственный мрамор","керамический картридж","полимерная керамика","овальная","белый",1,"нет","нет",null,6,"распашная",1,"серый","акрил","рифленое","хром","алюминий","стекло","низкий","белый","нет, приобретается отдельно","да","для раковины","Cezares","Royal Palace","Италия","Royal Palace","\nВанна RIHO NEO 140 изготовлена из 100 % акрилового листа LUCITE, с добавлением антибактериального свойства MICROBAN.","Описание\nВанна RIHO NEO 140 изготовлена из 100 % акрилового листа LUCITE, с добавлением антибактериального свойства MICROBAN.",31840,"210172324_737.jpg","210172324_737-2.jpg","210172324_737-3.jpg","210172324_737-4.jpg","35545668_968-5.jpg","BA6500500000000","напольный унитаз-компакт","есть","нет","вертикальный (в пол), горизонтальный (в стену)","фарфор","да","дюропласт, дерево",45.5,69,84.5,40,"бытовая","поверх унитаза",42069,"снизу бачка","душевой слив (воронка-водоворот)","две кнопки (режим эконом)","механическая кнопка","овальная","нет","ретро","белый","белый, под дерево","есть, уже установлено","нет, установка не предусмотрена","встроенное сиденье","15 лет","Италия","для ванн RIHO Dopio, Modena, Geta, Daytona","подлокотники","бронза","noce","220-230","нет","напольный",56,"любое, по желанию","пристенная","по центру",5.2,0.5,"установка по желанию","гидромассаж спины, гидромассаж боковой, гидромассаж ног",14,6,2,1,"есть, приобретаются отдельно","есть, приобретаются отдельно","нет, установка на каркас не предусмотрена","есть, приобретается отдельно","нет, приобретается отдельно",190,"нет","левая","установка по желанию","установка по желанию",null,"установка по желанию","установка по желанию",12,"системы гидромассажа","нет","ванн Riho Doppio",14,112,"массив ореха","массив лиственных деревьев","округлая","темное дерево","с дверками, с ящиками","нет","искусственный мрамор","керамический картридж","полимерная керамика","овальная","белый",1,"нет",null,"Материал1|Cezares\nМатериал2|Royal Palace\nМатериал3|Италия\nМатериал4|Royal Palace\nМатериал5|\nВанна RIHO NEO 140 изготовлена из 100 % акрилового листа LUCITE, с добавлением антибактериального свойства MICROBAN.\nМатериал6|Описание\nВанна RIHO NEO 140 изготовлена из 100 % акрилового листа LUCITE, с добавлением антибактериального свойства MICROBAN.\nМатериал7|31840\nМатериал8|210172324_737.jpg\nМатериал9|210172324_737-2.jpg\nМатериал10|210172324_737-3.jpg\nМатериал11|210172324_737-4.jpg\nМатериал12|35545668_968-5.jpg\nМатериал13|BA6500500000000\nМатериал14|напольный унитаз-компакт\nМатериал15|есть\nМатериал16|нет\nМатериал17|вертикальный (в пол), горизонтальный (в стену)\nМатериал18|фарфор\nМатериал19|да\nМатериал20|дюропласт, дерево\nМатериал21|45,5\nМатериал22|69\nМатериал23|84,5\nМатериал24|40\nМатериал25|бытовая\nМатериал26|поверх унитаза\nМатериал27|42069\nМатериал28|снизу бачка\nМатериал29|душевой слив (воронка-водоворот)\nМатериал30|две кнопки (режим эконом)\nМатериал31|механическая кнопка\nМатериал32|овальная\nМатериал33|нет\nМатериал34|ретро\nМатериал35|белый\nМатериал36|белый, под дерево\nМатериал37|есть, уже установлено\nМатериал38|нет, установка не предусмотрена\nМатериал39|встроенное сиденье\nМатериал40|15 лет\nМатериал41|Италия\nМатериал42|для ванн RIHO Dopio, Modena, Geta, Daytona\nМатериал43|подлокотники\nМатериал44|бронза\nМатериал45|noce\nМатериал46|220-230\nМатериал47|нет\nМатериал48|напольный\nМатериал49|56\nМатериал50|любое, по желанию\nМатериал51|пристенная\nМатериал52|по центру\nМатериал53|5,2\nМатериал54|0,5\nМатериал55|установка по желанию\nМатериал56|гидромассаж спины, гидромассаж боковой, гидромассаж ног\nМатериал57|14\nМатериал58|6\nМатериал59|2\nМатериал60|1\nМатериал61|есть, приобретаются отдельно\nМатериал62|есть, приобретаются отдельно\nМатериал63|нет, установка на каркас не предусмотрена\nМатериал64|есть, приобретается отдельно\nМатериал65|нет, приобретается отдельно\nМатериал66|190\nМатериал67|нет\nМатериал68|левая\nМатериал69|установка по желанию\nМатериал70|установка по желанию\nМатериал71|\nМатериал72|установка по желанию\nМатериал73|установка по желанию\nМатериал74|12\nМатериал75|системы гидромассажа\nМатериал76|нет\nМатериал77|ванн Riho Doppio\nМатериал78|14\nМатериал79|112\nМатериал80|массив ореха\nМатериал81|массив лиственных деревьев\nМатериал82|округлая\nМатериал83|темное дерево\nМатериал84|с дверками, с ящиками\nМатериал85|нет\nМатериал86|искусственный мрамор\nМатериал87|керамический картридж\nМатериал88|полимерная керамика\nМатериал89|овальная\nМатериал90|белый\nМатериал91|1\nМатериал92|нет\nМатериал93|нет\nМатериал94|\nМатериал95|6\nМатериал96|распашная\nМатериал97|1\nМатериал98|серый\nМатериал99|акрил\nМатериал100|рифленое\nМатериал101|хром\nМатериал102|алюминий\nМатериал103|стекло\nМатериал104|низкий\nМатериал105|белый\nМатериал106|нет, приобретается отдельно\nМатериал107|да\nМатериал108|для раковины\nМатериал109|Cezares\nМатериал110|Royal Palace\nМатериал111|Италия\nМатериал112|Royal Palace\nМатериал113|\nВанна RIHO NEO 140 изготовлена из 100 % акрилового листа LUCITE, с добавлением антибактериального свойства MICROBAN.\nМатериал114|Описание\nВанна RIHO NEO 140 изготовлена из 100 % акрилового листа LUCITE, с добавлением антибактериального свойства MICROBAN.\nМатериал115|31840\nМатериал116|210172324_737.jpg\nМатериал117|210172324_737-2.jpg\nМатериал118|210172324_737-3.jpg\nМатериал119|210172324_737-4.jpg\nМатериал120|35545668_968-5.jpg\nМатериал121|BA6500500000000\nМатериал122|напольный унитаз-компакт\nМатериал123|есть\nМатериал124|нет\nМатериал125|вертикальный (в пол), горизонтальный (в стену)\nМатериал126|фарфор\nМатериал127|да\nМатериал128|дюропласт, дерево\nМатериал129|45,5\nМатериал130|69\nМатериал131|84,5\nМатериал132|40\nМатериал133|бытовая\nМатериал134|поверх унитаза\nМатериал135|42069\nМатериал136|снизу бачка\nМатериал137|душевой слив (воронка-водоворот)\nМатериал138|две кнопки (режим эконом)\nМатериал139|механическая кнопка\nМатериал140|овальная\nМатериал141|нет\nМатериал142|ретро\nМатериал143|белый\nМатериал144|белый, под дерево\nМатериал145|есть, уже установлено\nМатериал146|нет, установка не предусмотрена\nМатериал147|встроенное сиденье\nМатериал148|15 лет\nМатериал149|Италия\nМатериал150|для ванн RIHO Dopio, Modena, Geta, Daytona\nМатериал151|подлокотники\nМатериал152|бронза\nМатериал153|noce\nМатериал154|220-230\nМатериал155|нет\nМатериал156|напольный\nМатериал157|56\nМатериал158|любое, по желанию\nМатериал159|пристенная\nМатериал160|по центру\nМатериал161|5,2\nМатериал162|0,5\nМатериал163|установка по желанию\nМатериал164|гидромассаж спины, гидромассаж боковой, гидромассаж ног\nМатериал165|14\nМатериал166|6\nМатериал167|2\nМатериал168|1\nМатериал169|есть, приобретаются отдельно\nМатериал170|есть, приобретаются отдельно\nМатериал171|нет, установка на каркас не предусмотрена\nМатериал172|есть, приобретается отдельно\nМатериал173|нет, приобретается отдельно\nМатериал174|190\nМатериал175|нет\nМатериал176|левая\nМатериал177|установка по желанию\nМатериал178|установка по желанию\nМатериал179|\nМатериал180|установка по желанию\nМатериал181|установка по желанию\nМатериал182|12\nМатериал183|системы гидромассажа\nМатериал184|нет\nМатериал185|ванн Riho Doppio\nМатериал186|14\nМатериал187|112\nМатериал188|массив ореха\nМатериал189|массив лиственных деревьев\nМатериал190|округлая\nМатериал191|темное дерево\nМатериал192|с дверками, с ящиками\nМатериал193|нет\nМатериал194|искусственный мрамор\nМатериал195|керамический картридж\nМатериал196|полимерная керамика\nМатериал197|овальная\nМатериал198|белый\nМатериал199|1\nМатериал200|нет"]
["Riho","Miami","Чехия / Нидерланды","Miami 180","\nВанна RIHO LYRA 170 изготовлена из 100 % акрилового листа LUCITE, с добавлением антибактериального свойства MICROBAN.","Описание\nВанна RIHO LYRA 170 изготовлена из 100 % акрилового листа LUCITE, с добавлением антибактериального свойства MICROBAN.",17900,"35545595_950.jpg","35545595_950-2.jpg","35545595_950-3.jpg","35545595_950-4.jpg","35555711_978-5.jpg","BA6900500000000","напольный унитаз-компакт","есть","нет","вертикальный (в пол)","акрил","нет","дерево",80,180,43,null,"бытовая","поверх унитаза",42069,null,"душевой слив (воронка-водоворот)","две кнопки (режим эконом)","механический","прямоугольная","нет","современный стиль","белый","белый, под дерево","установка по желанию","нет, установка не предусмотрена","встроенное сиденье","10 лет","Чехия, Нидерланды","для ванн Lyra 153, Lyra 140, Neo 140, Nora","подлокотники","бронза","патина, bianco patinato","220-230","нет","напольный",49,"любое, по желанию","пристенная","по центру",5.2,0.5,"установка по желанию","гидромассаж спины, гидромассаж боковой, гидромассаж ног",6,12,2,1,"есть, приобретаются отдельно","есть, приобретаются отдельно","нет, установка на каркас не предусмотрена","есть, приобретается отдельно","нет, приобретается отдельно",400,"нет","правая","установка по желанию","установка по желанию",null,"установка по желанию","установка по желанию",12,"системы гидромассажа","нет","ванн Riho Klassik",13,62.5,"массив ореха","массив лиственных деревьев","прямоугольная, округлая","белый","с дверками","нет","натуральный мрамор","керамический картридж","полимерная керамика","полукруглая","белый",1,"нет","нет",null,6,"распашная",1,"серый","акрил","прозрачное","хром","алюминий","стекло","низкий","белый","нет, приобретается отдельно","да","для раковины","Riho","Miami","Чехия / Нидерланды","Miami 180","\nВанна RIHO LYRA 170 изготовлена из 100 % акрилового листа LUCITE, с добавлением антибактериального свойства MICROBAN.","Описание\nВанна RIHO LYRA 170 изготовлена из 100 % акрилового листа LUCITE, с добавлением антибактериального свойства MICROBAN.",17900,"35545595_950.jpg","35545595_950-2.jpg","35545595_950-3.jpg","35545595_950-4.jpg","35555711_978-5.jpg","BA6900500000000","напольный унитаз-компакт","есть","нет","вертикальный (в пол)","акрил","нет","дерево",80,180,43,null,"бытовая","поверх унитаза",42069,null,"душевой слив (воронка-водоворот)","две кнопки (режим эконом)","механический","прямоугольная","нет","современный стиль","белый","белый, под дерево","установка по желанию","нет, установка не предусмотрена","встроенное сиденье","10 лет","Чехия, Нидерланды","для ванн Lyra 153, Lyra 140, Neo 140, Nora","подлокотники","бронза","патина, bianco patinato","220-230","нет","напольный",49,"любое, по желанию","пристенная","по центру",5.2,0.5,"установка по желанию","гидромассаж спины, гидромассаж боковой, гидромассаж ног",6,12,2,1,"есть, приобретаются отдельно","есть, приобретаются отдельно","нет, установка на каркас не предусмотрена","есть, приобретается отдельно","нет, приобретается отдельно",400,"нет","правая","установка по желанию","установка по желанию",null,"установка по желанию","установка по желанию",12,"системы гидромассажа","нет","ванн Riho Klassik",13,62.5,"массив ореха","массив лиственных деревьев","прямоугольная, округлая","белый","с дверками","нет","натуральный мрамор","керамический картридж","полимерная керамика","полукруглая","белый",1,"нет",null,"Материал1|Riho\nМатериал2|Miami\nМатериал3|Чехия / Нидерланды\nМатериал4|Miami 180\nМатериал5|\nВанна RIHO LYRA 170 изготовлена из 100 % акрилового листа LUCITE, с добавлением антибактериального свойства MICROBAN.\nМатериал6|Описание\nВанна RIHO LYRA 170 изготовлена из 100 % акрилового листа LUCITE, с добавлением антибактериального свойства MICROBAN.\nМатериал7|17900\nМатериал8|35545595_950.jpg\nМатериал9|35545595_950-2.jpg\nМатериал10|35545595_950-3.jpg\nМатериал11|35545595_950-4.jpg\nМатериал12|35555711_978-5.jpg\nМатериал13|BA6900500000000\nМатериал14|напольный унитаз-компакт\nМатериал15|есть\nМатериал16|нет\nМатериал17|вертикальный (в пол)\nМатериал18|акрил\nМатериал19|нет\nМатериал20|дерево\nМатериал21|80\nМатериал22|180\nМатериал23|43\nМатериал24|\nМатериал25|бытовая\nМатериал26|поверх унитаза\nМатериал27|42069\nМатериал28|\nМатериал29|душевой слив (воронка-водоворот)\nМатериал30|две кнопки (режим эконом)\nМатериал31|механический\nМатериал32|прямоугольная\nМатериал33|нет\nМатериал34|современный стиль\nМатериал35|белый\nМатериал36|белый, под дерево\nМатериал37|установка по желанию\nМатериал38|нет, установка не предусмотрена\nМатериал39|встроенное сиденье\nМатериал40|10 лет\nМатериал41|Чехия, Нидерланды\nМатериал42|для ванн Lyra 153, Lyra 140, Neo 140, Nora\nМатериал43|подлокотники\nМатериал44|бронза\nМатериал45|патина, bianco patinato\nМатериал46|220-230\nМатериал47|нет\nМатериал48|напольный\nМатериал49|49\nМатериал50|любое, по желанию\nМатериал51|пристенная\nМатериал52|по центру\nМатериал53|5,2\nМатериал54|0,5\nМатериал55|установка по желанию\nМатериал56|гидромассаж спины, гидромассаж боковой, гидромассаж ног\nМатериал57|6\nМатериал58|12\nМатериал59|2\nМатериал60|1\nМатериал61|есть, приобретаются отдельно\nМатериал62|есть, приобретаются отдельно\nМатериал63|нет, установка на каркас не предусмотрена\nМатериал64|есть, приобретается отдельно\nМатериал65|нет, приобретается отдельно\nМатериал66|400\nМатериал67|нет\nМатериал68|правая\nМатериал69|установка по желанию\nМатериал70|установка по желанию\nМатериал71|\nМатериал72|установка по желанию\nМатериал73|установка по желанию\nМатериал74|12\nМатериал75|системы гидромассажа\nМатериал76|нет\nМатериал77|ванн Riho Klassik\nМатериал78|13\nМатериал79|62,5\nМатериал80|массив ореха\nМатериал81|массив лиственных деревьев\nМатериал82|прямоугольная, округлая\nМатериал83|белый\nМатериал84|с дверками\nМатериал85|нет\nМатериал86|натуральный мрамор\nМатериал87|керамический картридж\nМатериал88|полимерная керамика\nМатериал89|полукруглая\nМатериал90|белый\nМатериал91|1\nМатериал92|нет\nМатериал93|нет\nМатериал94|\nМатериал95|6\nМатериал96|распашная\nМатериал97|1\nМатериал98|серый\nМатериал99|акрил\nМатериал100|прозрачное\nМатериал101|хром\nМатериал102|алюминий\nМатериал103|стекло\nМатериал104|низкий\nМатериал105|белый\nМатериал106|нет, приобретается отдельно\nМатериал107|да\nМатериал108|для раковины\nМатериал109|Riho\nМатериал110|Miami\nМатериал111|Чехия / Нидерланды\nМатериал112|Miami 180\nМатериал113|\nВанна RIHO LYRA 170 изготовлена из 100 % акрилового листа LUCITE, с добавлением антибактериального свойства MICROBAN.\nМатериал114|Описание\nВанна RIHO LYRA 170 изготовлена из 100 % акрилового листа LUCITE, с добавлением антибактериального свойства MICROBAN.\nМатериал115|17900\nМатериал116|35545595_950.jpg\nМатериал117|35545595_950-2.jpg\nМатериал118|35545595_950-3.jpg\nМатериал119|35545595_950-4.jpg\nМатериал120|35555711_978-5.jpg\nМатериал121|BA6900500000000\nМатериал122|напольный унитаз-компакт\nМатериал123|есть\nМатериал124|нет\nМатериал125|вертикальный (в пол)\nМатериал126|акрил\nМатериал127|нет\nМатериал128|дерево\nМатериал129|80\nМатериал130|180\nМатериал131|43\nМатериал132|\nМатериал133|бытовая\nМатериал134|поверх унитаза\nМатериал135|42069\nМатериал136|\nМатериал137|душевой слив (воронка-водоворот)\nМатериал138|две кнопки (режим эконом)\nМатериал139|механический\nМатериал140|прямоугольная\nМатериал141|нет\nМатериал142|современный стиль\nМатериал143|белый\nМатериал144|белый, под дерево\nМатериал145|установка по желанию\nМатериал146|нет, установка не предусмотрена\nМатериал147|встроенное сиденье\nМатериал148|10 лет\nМатериал149|Чехия, Нидерланды\nМатериал150|для ванн Lyra 153, Lyra 140, Neo 140, Nora\nМатериал151|подлокотники\nМатериал152|бронза\nМатериал153|патина, bianco patinato\nМатериал154|220-230\nМатериал155|нет\nМатериал156|напольный\nМатериал157|49\nМатериал158|любое, по желанию\nМатериал159|пристенная\nМатериал160|по центру\nМатериал161|5,2\nМатериал162|0,5\nМатериал163|установка по желанию\nМатериал164|гидромассаж спины, гидромассаж боковой, гидромассаж ног\nМатериал165|6\nМатериал166|12\nМатериал167|2\nМатериал168|1\nМатериал169|есть, приобретаются отдельно\nМатериал170|есть, приобретаются отдельно\nМатериал171|нет, установка на каркас не предусмотрена\nМатериал172|есть, приобретается отдельно\nМатериал173|нет, приобретается отдельно\nМатериал174|400\nМатериал175|нет\nМатериал176|правая\nМатериал177|установка по желанию\nМатериал178|установка по желанию\nМатериал179|\nМатериал180|установка по желанию\nМатериал181|установка по желанию\nМатериал182|12\nМатериал183|системы гидромассажа\nМатериал184|нет\nМатериал185|ванн Riho Klassik\nМатериал186|13\nМатериал187|62,5\nМатериал188|массив ореха\nМатериал189|массив лиственных деревьев\nМатериал190|прямоугольная, округлая\nМатериал191|белый\nМатериал192|с дверками\nМатериал193|нет\nМатериал194|натуральный мрамор\nМатериал195|керамический картридж\nМатериал196|полимерная керамика\nМатериал197|полукруглая\nМатериал198|белый\nМатериал199|1\nМатериал200|нет"]
["Riho","Neo","Чехия / Нидерланды","Neo 150","\nВанна RIHO LYRA 140 изготовлена из 100 % акрилового листа\nLUCITE, с добавлением антибактериального свойства MICROBAN.","Описание\nВанна RIHO LYRA 140 изготовлена из 100 % акрилового листа\nLUCITE, с добавлением антибактериального свойства MICROBAN.",30680,"63554683_961.jpg","63554683_961-2.jpg","63554683_961-3.jpg","35545671_967-4.jpg","35445567_1059-5.jpg","BA1200500000000",null,null,null,"вертикальный (в пол)","акрил","нет",null,150,150,49,null,"бытовая","поверх унитаза",null,null,null,"две кнопки (режим эконом)","механическая кнопка","четверть круга","да","современный стиль","белый",null,null,null,"встроенное сиденье","10 лет","Чехия, Нидерланды","для ванн  Yukon, Doppio, Dorado, Geta 160, 170","подлокотники","хром, кристалл","bianco laccato lucido","220-230","нет","напольный",60,"любое, по желанию","пристенная","стандартное",5.2,0.5,"установка по желанию","гидромассаж спины, гидромассаж боковой, гидромассаж ног",6,12,2,1,"есть, приобретаются отдельно","есть, приобретаются отдельно","нет, установка на каркас не предусмотрена","есть, приобретается отдельно","нет, приобретается отдельно",295,"нет","правая","установка по желанию","установка по желанию",null,"установка по желанию","установка по желанию",12,"системы гидромассажа","нет","ванн Riho Sydney",14,131,"массив ореха","массив лиственных деревьев","округлая","белый","с ящиками","нет",null,"керамический картридж","полимерная керамика","полукруглая","белый",1,"нет","нет",null,6,"раздвижная",2,"серый","акрил","рифленое","хром","алюминий","стекло","низкий","белый","нет, приобретается отдельно","да","для раковины, для раковины-чаши","Riho","Neo","Чехия / Нидерланды","Neo 150","\nВанна RIHO LYRA 140 изготовлена из 100 % акрилового листа\nLUCITE, с добавлением антибактериального свойства MICROBAN.","Описание\nВанна RIHO LYRA 140 изготовлена из 100 % акрилового листа\nLUCITE, с добавлением антибактериального свойства MICROBAN.",30680,"63554683_961.jpg","63554683_961-2.jpg","63554683_961-3.jpg","35545671_967-4.jpg","35445567_1059-5.jpg","BA1200500000000",null,null,null,"вертикальный (в пол)","акрил","нет",null,150,150,49,null,"бытовая","поверх унитаза",null,null,null,"две кнопки (режим эконом)","механическая кнопка","четверть круга","да","современный стиль","белый",null,null,null,"встроенное сиденье","10 лет","Чехия, Нидерланды","для ванн  Yukon, Doppio, Dorado, Geta 160, 170","подлокотники","хром, кристалл","bianco laccato lucido","220-230","нет","напольный",60,"любое, по желанию","пристенная","стандартное",5.2,0.5,"установка по желанию","гидромассаж спины, гидромассаж боковой, гидромассаж ног",6,12,2,1,"есть, приобретаются отдельно","есть, приобретаются отдельно","нет, установка на каркас не предусмотрена","есть, приобретается отдельно","нет, приобретается отдельно",295,"нет","правая","установка по желанию","установка по желанию",null,"установка по желанию","установка по желанию",12,"системы гидромассажа","нет","ванн Riho Sydney",14,131,"массив ореха","массив лиственных деревьев","округлая","белый","с ящиками","нет",null,"керамический картридж","полимерная керамика","полукруглая","белый",1,"нет",null,"Материал1|Riho\nМатериал2|Neo\nМатериал3|Чехия / Нидерланды\nМатериал4|Neo 150\nМатериал5|\nВанна RIHO LYRA 140 изготовлена из 100 % акрилового листа\nLUCITE, с добавлением антибактериального свойства MICROBAN.\nМатериал6|Описание\nВанна RIHO LYRA 140 изготовлена из 100 % акрилового листа\nLUCITE, с добавлением антибактериального свойства MICROBAN.\nМатериал7|30680\nМатериал8|63554683_961.jpg\nМатериал9|63554683_961-2.jpg\nМатериал10|63554683_961-3.jpg\nМатериал11|35545671_967-4.jpg\nМатериал12|35445567_1059-5.jpg\nМатериал13|BA1200500000000\nМатериал14|\nМатериал15|\nМатериал16|\nМатериал17|вертикальный (в пол)\nМатериал18|акрил\nМатериал19|нет\nМатериал20|\nМатериал21|150\nМатериал22|150\nМатериал23|49\nМатериал24|\nМатериал25|бытовая\nМатериал26|поверх унитаза\nМатериал27|\nМатериал28|\nМатериал29|\nМатериал30|две кнопки (режим эконом)\nМатериал31|механическая кнопка\nМатериал32|четверть круга\nМатериал33|да\nМатериал34|современный стиль\nМатериал35|белый\nМатериал36|\nМатериал37|\nМатериал38|\nМатериал39|встроенное сиденье\nМатериал40|10 лет\nМатериал41|Чехия, Нидерланды\nМатериал42|для ванн  Yukon, Doppio, Dorado, Geta 160, 170\nМатериал43|подлокотники\nМатериал44|хром, кристалл\nМатериал45|bianco laccato lucido\nМатериал46|220-230\nМатериал47|нет\nМатериал48|напольный\nМатериал49|60\nМатериал50|любое, по желанию\nМатериал51|пристенная\nМатериал52|стандартное\nМатериал53|5,2\nМатериал54|0,5\nМатериал55|установка по желанию\nМатериал56|гидромассаж спины, гидромассаж боковой, гидромассаж ног\nМатериал57|6\nМатериал58|12\nМатериал59|2\nМатериал60|1\nМатериал61|есть, приобретаются отдельно\nМатериал62|есть, приобретаются отдельно\nМатериал63|нет, установка на каркас не предусмотрена\nМатериал64|есть, приобретается отдельно\nМатериал65|нет, приобретается отдельно\nМатериал66|295\nМатериал67|нет\nМатериал68|правая\nМатериал69|установка по желанию\nМатериал70|установка по желанию\nМатериал71|\nМатериал72|установка по желанию\nМатериал73|установка по желанию\nМатериал74|12\nМатериал75|системы гидромассажа\nМатериал76|нет\nМатериал77|ванн Riho Sydney\nМатериал78|14\nМатериал79|131\nМатериал80|массив ореха\nМатериал81|массив лиственных деревьев\nМатериал82|округлая\nМатериал83|белый\nМатериал84|с ящиками\nМатериал85|нет\nМатериал86|\nМатериал87|керамический картридж\nМатериал88|полимерная керамика\nМатериал89|полукруглая\nМатериал90|белый\nМатериал91|1\nМатериал92|нет\nМатериал93|нет\nМатериал94|\nМатериал95|6\nМатериал96|раздвижная\nМатериал97|2\nМатериал98|серый\nМатериал99|акрил\nМатериал100|рифленое\nМатериал101|хром\nМатериал102|алюминий\nМатериал103|стекло\nМатериал104|низкий\nМатериал105|белый\nМатериал106|нет, приобретается отдельно\nМатериал107|да\nМатериал108|для раковины, для раковины-чаши\nМатериал109|Riho\nМатериал110|Neo\nМатериал111|Чехия / Нидерланды\nМатериал112|Neo 150\nМатериал113|\nВанна RIHO LYRA 140 изготовлена из 100 % акрилового листа\nLUCITE, с добавлением антибактериального свойства MICROBAN.\nМатериал114|Описание\nВанна RIHO LYRA 140 изготовлена из 100 % акрилового листа\nLUCITE, с добавлением антибактериального свойства MICROBAN.\nМатериал115|30680\nМатериал116|63554683_961.jpg\nМатериал117|63554683_961-2.jpg\nМатериал118|63554683_961-3.jpg\nМатериал119|35545671_967-4.jpg\nМатериал120|35445567_1059-5.jpg\nМатериал121|BA1200500000000\nМатериал122|\nМатериал123|\nМатериал124|\nМатериал125|вертикальный (в пол)\nМатериал126|акрил\nМатериал127|нет\nМатериал128|\nМатериал129|150\nМатериал130|150\nМатериал131|49\nМатериал132|\nМатериал133|бытовая\nМатериал134|поверх унитаза\nМатериал135|\nМатериал136|\nМатериал137|\nМатериал138|две кнопки (режим эконом)\nМатериал139|механическая кнопка\nМатериал140|четверть круга\nМатериал141|да\nМатериал142|современный стиль\nМатериал143|белый\nМатериал144|\nМатериал145|\nМатериал146|\nМатериал147|встроенное сиденье\nМатериал148|10 лет\nМатериал149|Чехия, Нидерланды\nМатериал150|для ванн  Yukon, Doppio, Dorado, Geta 160, 170\nМатериал151|подлокотники\nМатериал152|хром, кристалл\nМатериал153|bianco laccato lucido\nМатериал154|220-230\nМатериал155|нет\nМатериал156|напольный\nМатериал157|60\nМатериал158|любое, по желанию\nМатериал159|пристенная\nМатериал160|стандартное\nМатериал161|5,2\nМатериал162|0,5\nМатериал163|установка по желанию\nМатериал164|гидромассаж спины, гидромассаж боковой, гидромассаж ног\nМатериал165|6\nМатериал166|12\nМатериал167|2\nМатериал168|1\nМатериал169|есть, приобретаются отдельно\nМатериал170|есть, приобретаются отдельно\nМатериал171|нет, установка на каркас не предусмотрена\nМатериал172|есть, приобретается отдельно\nМатериал173|нет, приобретается отдельно\nМатериал174|295\nМатериал175|нет\nМатериал176|правая\nМатериал177|установка по желанию\nМатериал178|установка по желанию\nМатериал179|\nМатериал180|установка по желанию\nМатериал181|установка по желанию\nМатериал182|12\nМатериал183|системы гидромассажа\nМатериал184|нет\nМатериал185|ванн Riho Sydney\nМатериал186|14\nМатериал187|131\nМатериал188|массив ореха\nМатериал189|массив лиственных деревьев\nМатериал190|округлая\nМатериал191|белый\nМатериал192|с ящиками\nМатериал193|нет\nМатериал194|\nМатериал195|керамический картридж\nМатериал196|полимерная керамика\nМатериал197|полукруглая\nМатериал198|белый\nМатериал199|1\nМатериал200|нет"]
["Riho","Neo","Чехия / Нидерланды","Neo 140","\nВанна RIHO JULIA 190 изготовлена из 100 % акрилового листа LUCITE, с добавлением антибактериального свойства MICROBAN.","Описание\nВанна RIHO JULIA 190 изготовлена из 100 % акрилового листа LUCITE, с добавлением антибактериального свойства MICROBAN.",26200,"63554682_964.jpg","63554682_964-2.jpg","63554682_964-3.jpg","35545668_968-4.jpg","35445611_1064-5.jpg","BZ2200500000000",null,null,null,"вертикальный (в пол)","акрил","нет",null,140,140,47.5,null,"бытовая",null,null,null,null,null,null,"четверть круга","да","современный стиль","белый",null,null,null,"встроенное сиденье","10 лет","Чехия, Нидерланды","с поверхностной обработкой Riho Shield","подлокотники","хром","bianco perla frassinato","220-230","нет","напольный",51,"любое, по желанию","пристенная","стандартное",5.2,0.5,"установка по желанию","гидромассаж спины, гидромассаж боковой, гидромассаж ног",6,12,2,1,"есть, приобретаются отдельно","есть, приобретаются отдельно","нет, установка на каркас не предусмотрена","есть, приобретается отдельно","нет, приобретается отдельно",180,"нет","правая","установка по желанию","установка по желанию",null,"установка по желанию","установка по желанию",12,"системы гидромассажа","нет","ванн Riho Future",13,68.5,"массив ореха","массив лиственных деревьев","округлая","белый","с дверками","нет",null,"керамический картридж","стекло","полукруглая","черный",1,null,null,null,6,"раздвижная",1,"серый","акрил","прозрачное","хром","алюминий","стекло","низкий","белый","нет, приобретается отдельно","да","для раковины","Riho","Neo","Чехия / Нидерланды","Neo 140","\nВанна RIHO JULIA 190 изготовлена из 100 % акрилового листа LUCITE, с добавлением антибактериального свойства MICROBAN.","Описание\nВанна RIHO JULIA 190 изготовлена из 100 % акрилового листа LUCITE, с добавлением антибактериального свойства MICROBAN.",26200,"63554682_964.jpg","63554682_964-2.jpg","63554682_964-3.jpg","35545668_968-4.jpg","35445611_1064-5.jpg","BZ2200500000000",null,null,null,"вертикальный (в пол)","акрил","нет",null,140,140,47.5,null,"бытовая",null,null,null,null,null,null,"четверть круга","да","современный стиль","белый",null,null,null,"встроенное сиденье","10 лет","Чехия, Нидерланды","с поверхностной обработкой Riho Shield","подлокотники","хром","bianco perla frassinato","220-230","нет","напольный",51,"любое, по желанию","пристенная","стандартное",5.2,0.5,"установка по желанию","гидромассаж спины, гидромассаж боковой, гидромассаж ног",6,12,2,1,"есть, приобретаются отдельно","есть, приобретаются отдельно","нет, установка на каркас не предусмотрена","есть, приобретается отдельно","нет, приобретается отдельно",180,"нет","правая","установка по желанию","установка по желанию",null,"установка по желанию","установка по желанию",12,"системы гидромассажа","нет","ванн Riho Future",13,68.5,"массив ореха","массив лиственных деревьев","округлая","белый","с дверками","нет",null,"керамический картридж","стекло","полукруглая","черный",1,null,null,"Материал1|Riho\nМатериал2|Neo\nМатериал3|Чехия / Нидерланды\nМатериал4|Neo 140\nМатериал5|\nВанна RIHO JULIA 190 изготовлена из 100 % акрилового листа LUCITE, с добавлением антибактериального свойства MICROBAN.\nМатериал6|Описание\nВанна RIHO JULIA 190 изготовлена из 100 % акрилового листа LUCITE, с добавлением антибактериального свойства MICROBAN.\nМатериал7|26200\nМатериал8|63554682_964.jpg\nМатериал9|63554682_964-2.jpg\nМатериал10|63554682_964-3.jpg\nМатериал11|35545668_968-4.jpg\nМатериал12|35445611_1064-5.jpg\nМатериал13|BZ2200500000000\nМатериал14|\nМатериал15|\nМатериал16|\nМатериал17|вертикальный (в пол)\nМатериал18|акрил\nМатериал19|нет\nМатериал20|\nМатериал21|140\nМатериал22|140\nМатериал23|47,5\nМатериал24|\nМатериал25|бытовая\nМатериал26|\nМатериал27|\nМатериал28|\nМатериал29|\nМатериал30|\nМатериал31|\nМатериал32|четверть круга\nМатериал33|да\nМатериал34|современный стиль\nМатериал35|белый\nМатериал36|\nМатериал37|\nМатериал38|\nМатериал39|встроенное сиденье\nМатериал40|10 лет\nМатериал41|Чехия, Нидерланды\nМатериал42|с поверхностной обработкой Riho Shield\nМатериал43|подлокотники\nМатериал44|хром\nМатериал45|bianco perla frassinato\nМатериал46|220-230\nМатериал47|нет\nМатериал48|напольный\nМатериал49|51\nМатериал50|любое, по желанию\nМатериал51|пристенная\nМатериал52|стандартное\nМатериал53|5,2\nМатериал54|0,5\nМатериал55|установка по желанию\nМатериал56|гидромассаж спины, гидромассаж боковой, гидромассаж ног\nМатериал57|6\nМатериал58|12\nМатериал59|2\nМатериал60|1\nМатериал61|есть, приобретаются отдельно\nМатериал62|есть, приобретаются отдельно\nМатериал63|нет, установка на каркас не предусмотрена\nМатериал64|есть, приобретается отдельно\nМатериал65|нет, приобретается отдельно\nМатериал66|180\nМатериал67|нет\nМатериал68|правая\nМатериал69|установка по желанию\nМатериал70|установка по желанию\nМатериал71|\nМатериал72|установка по желанию\nМатериал73|установка по желанию\nМатериал74|12\nМатериал75|системы гидромассажа\nМатериал76|нет\nМатериал77|ванн Riho Future\nМатериал78|13\nМатериал79|68,5\nМатериал80|массив ореха\nМатериал81|массив лиственных деревьев\nМатериал82|округлая\nМатериал83|белый\nМатериал84|с дверками\nМатериал85|нет\nМатериал86|\nМатериал87|керамический картридж\nМатериал88|стекло\nМатериал89|полукруглая\nМатериал90|черный\nМатериал91|1\nМатериал92|\nМатериал93|\nМатериал94|\nМатериал95|6\nМатериал96|раздвижная\nМатериал97|1\nМатериал98|серый\nМатериал99|акрил\nМатериал100|прозрачное\nМатериал101|хром\nМатериал102|алюминий\nМатериал103|стекло\nМатериал104|низкий\nМатериал105|белый\nМатериал106|нет, приобретается отдельно\nМатериал107|да\nМатериал108|для раковины\nМатериал109|Riho\nМатериал110|Neo\nМатериал111|Чехия / Нидерланды\nМатериал112|Neo 140\nМатериал113|\nВанна RIHO JULIA 190 изготовлена из 100 % акрилового листа LUCITE, с добавлением антибактериального свойства MICROBAN.\nМатериал114|Описание\nВанна RIHO JULIA 190 изготовлена из 100 % акрилового листа LUCITE, с добавлением антибактериального свойства MICROBAN.\nМатериал115|26200\nМатериал116|63554682_964.jpg\nМатериал117|63554682_964-2.jpg\nМатериал118|63554682_964-3.jpg\nМатериал119|35545668_968-4.jpg\nМатериал120|35445611_1064-5.jpg\nМатериал121|BZ2200500000000\nМатериал122|\nМатериал123|\nМатериал124|\nМатериал125|вертикальный (в пол)\nМатериал126|акрил\nМатериал127|нет\nМатериал128|\nМатериал129|140\nМатериал130|140\nМатериал131|47,5\nМатериал132|\nМатериал133|бытовая\nМатериал134|\nМатериал135|\nМатериал136|\nМатериал137|\nМатериал138|\nМатериал139|\nМатериал140|четверть круга\nМатериал141|да\nМатериал142|современный стиль\nМатериал143|белый\nМатериал144|\nМатериал145|\nМатериал146|\nМатериал147|встроенное сиденье\nМатериал148|10 лет\nМатериал149|Чехия, Нидерланды\nМатериал150|с поверхностной обработкой Riho Shield\nМатериал151|подлокотники\nМатериал152|хром\nМатериал153|bianco perla frassinato\nМатериал154|220-230\nМатериал155|нет\nМатериал156|напольный\nМатериал157|51\nМатериал158|любое, по желанию\nМатериал159|пристенная\nМатериал160|стандартное\nМатериал161|5,2\nМатериал162|0,5\nМатериал163|установка по желанию\nМатериал164|гидромассаж спины, гидромассаж боковой, гидромассаж ног\nМатериал165|6\nМатериал166|12\nМатериал167|2\nМатериал168|1\nМатериал169|есть, приобретаются отдельно\nМатериал170|есть, приобретаются отдельно\nМатериал171|нет, установка на каркас не предусмотрена\nМатериал172|есть, приобретается отдельно\nМатериал173|нет, приобретается отдельно\nМатериал174|180\nМатериал175|нет\nМатериал176|правая\nМатериал177|установка по желанию\nМатериал178|установка по желанию\nМатериал179|\nМатериал180|установка по желанию\nМатериал181|установка по желанию\nМатериал182|12\nМатериал183|системы гидромассажа\nМатериал184|нет\nМатериал185|ванн Riho Future\nМатериал186|13\nМатериал187|68,5\nМатериал188|массив ореха\nМатериал189|массив лиственных деревьев\nМатериал190|округлая\nМатериал191|белый\nМатериал192|с дверками\nМатериал193|нет\nМатериал194|\nМатериал195|керамический картридж\nМатериал196|стекло\nМатериал197|полукруглая\nМатериал198|черный\nМатериал199|1\nМатериал200|"]
["Riho","Lyra","Чехия / Нидерланды","Lyra 170","\nВанна RIHO LUSSO PLUS 170x80 изготовлена из 100 % акрилового листа LUCITE, с добавлением антибактериального свойства MICROBAN.","Описание\nВанна RIHO LUSSO PLUS 170x80 изготовлена из 100 % акрилового листа LUCITE, с добавлением антибактериального свойства MICROBAN.",27800,"35545671_967.jpg","35545671_967-2.jpg","35545671_967-3.jpg","35555711_978-4.jpg","35445568_1088-5.jpg","BA7200500000000",null,null,null,"вертикальный (в пол)","акрил","нет",null,110,170,46.5,null,"бытовая",null,null,null,null,null,null,"асимметричная","да","современный стиль","белый",null,null,null,"встроенное сиденье","10 лет","Чехия, Нидерланды","установка универсальная","подлокотники","хром","nero laccato","220-230","нет","подвесной",45,"любое, по желанию","пристенная","по центру",5.2,0.5,"установка по желанию","гидромассаж спины, гидромассаж боковой, гидромассаж ног",6,12,2,1,"есть, приобретаются отдельно","есть, приобретаются отдельно","нет, установка на каркас не предусмотрена","есть, приобретается отдельно","нет, приобретается отдельно",320,"нет","левая","установка по желанию","установка по желанию",null,"установка по желанию","установка по желанию",12,"системы гидромассажа","нет","ванн Riho Miami",13,88,"массив ореха","массив лиственных деревьев","прямоугольная","черный","с ящиками","нет",null,"керамическая кран-букса","фарфор","полукруглая","белый",1,null,null,null,8,"распашная",1,"серый","акрил","прозрачное","хром","алюминий","стекло","низкий","белый","нет, приобретается отдельно","да","на борт ванны","Riho","Lyra","Чехия / Нидерланды","Lyra 170","\nВанна RIHO LUSSO PLUS 170x80 изготовлена из 100 % акрилового листа LUCITE, с добавлением антибактериального свойства MICROBAN.","Описание\nВанна RIHO LUSSO PLUS 170x80 изготовлена из 100 % акрилового листа LUCITE, с добавлением антибактериального свойства MICROBAN.",27800,"35545671_967.jpg","35545671_967-2.jpg","35545671_967-3.jpg","35555711_978-4.jpg","35445568_1088-5.jpg","BA7200500000000",null,null,null,"вертикальный (в пол)","акрил","нет",null,110,170,46.5,null,"бытовая",null,null,null,null,null,null,"асимметричная","да","современный стиль","белый",null,null,null,"встроенное сиденье","10 лет","Чехия, Нидерланды","установка универсальная","подлокотники","хром","nero laccato","220-230","нет","подвесной",45,"любое, по желанию","пристенная","по центру",5.2,0.5,"установка по желанию","гидромассаж спины, гидромассаж боковой, гидромассаж ног",6,12,2,1,"есть, приобретаются отдельно","есть, приобретаются отдельно","нет, установка на каркас не предусмотрена","есть, приобретается отдельно","нет, приобретается отдельно",320,"нет","левая","установка по желанию","установка по желанию",null,"установка по желанию","установка по желанию",12,"системы гидромассажа","нет","ванн Riho Miami",13,88,"массив ореха","массив лиственных деревьев","прямоугольная","черный","с ящиками","нет",null,"керамическая кран-букса","фарфор","полукруглая","белый",1,null,null,"Материал1|Riho\nМатериал2|Lyra\nМатериал3|Чехия / Нидерланды\nМатериал4|Lyra 170\nМатериал5|\nВанна RIHO LUSSO PLUS 170x80 изготовлена из 100 % акрилового листа LUCITE, с добавлением антибактериального свойства MICROBAN.\nМатериал6|Описание\nВанна RIHO LUSSO PLUS 170x80 изготовлена из 100 % акрилового листа LUCITE, с добавлением антибактериального свойства MICROBAN.\nМатериал7|27800\nМатериал8|35545671_967.jpg\nМатериал9|35545671_967-2.jpg\nМатериал10|35545671_967-3.jpg\nМатериал11|35555711_978-4.jpg\nМатериал12|35445568_1088-5.jpg\nМатериал13|BA7200500000000\nМатериал14|\nМатериал15|\nМатериал16|\nМатериал17|вертикальный (в пол)\nМатериал18|акрил\nМатериал19|нет\nМатериал20|\nМатериал21|110\nМатериал22|170\nМатериал23|46,5\nМатериал24|\nМатериал25|бытовая\nМатериал26|\nМатериал27|\nМатериал28|\nМатериал29|\nМатериал30|\nМатериал31|\nМатериал32|асимметричная\nМатериал33|да\nМатериал34|современный стиль\nМатериал35|белый\nМатериал36|\nМатериал37|\nМатериал38|\nМатериал39|встроенное сиденье\nМатериал40|10 лет\nМатериал41|Чехия, Нидерланды\nМатериал42|установка универсальная\nМатериал43|подлокотники\nМатериал44|хром\nМатериал45|nero laccato\nМатериал46|220-230\nМатериал47|нет\nМатериал48|подвесной\nМатериал49|45\nМатериал50|любое, по желанию\nМатериал51|пристенная\nМатериал52|по центру\nМатериал53|5,2\nМатериал54|0,5\nМатериал55|установка по желанию\nМатериал56|гидромассаж спины, гидромассаж боковой, гидромассаж ног\nМатериал57|6\nМатериал58|12\nМатериал59|2\nМатериал60|1\nМатериал61|есть, приобретаются отдельно\nМатериал62|есть, приобретаются отдельно\nМатериал63|нет, установка на каркас не предусмотрена\nМатериал64|есть, приобретается отдельно\nМатериал65|нет, приобретается отдельно\nМатериал66|320\nМатериал67|нет\nМатериал68|левая\nМатериал69|установка по желанию\nМатериал70|установка по желанию\nМатериал71|\nМатериал72|установка по желанию\nМатериал73|установка по желанию\nМатериал74|12\nМатериал75|системы гидромассажа\nМатериал76|нет\nМатериал77|ванн Riho Miami\nМатериал78|13\nМатериал79|88\nМатериал80|массив ореха\nМатериал81|массив лиственных деревьев\nМатериал82|прямоугольная\nМатериал83|черный\nМатериал84|с ящиками\nМатериал85|нет\nМатериал86|\nМатериал87|керамическая кран-букса\nМатериал88|фарфор\nМатериал89|полукруглая\nМатериал90|белый\nМатериал91|1\nМатериал92|\nМатериал93|\nМатериал94|\nМатериал95|8\nМатериал96|распашная\nМатериал97|1\nМатериал98|серый\nМатериал99|акрил\nМатериал100|прозрачное\nМатериал101|хром\nМатериал102|алюминий\nМатериал103|стекло\nМатериал104|низкий\nМатериал105|белый\nМатериал106|нет, приобретается отдельно\nМатериал107|да\nМатериал108|на борт ванны\nМатериал109|Riho\nМатериал110|Lyra\nМатериал111|Чехия / Нидерланды\nМатериал112|Lyra 170\nМатериал113|\nВанна RIHO LUSSO PLUS 170x80 изготовлена из 100 % акрилового листа LUCITE, с добавлением антибактериального свойства MICROBAN.\nМатериал114|Описание\nВанна RIHO LUSSO PLUS 170x80 изготовлена из 100 % акрилового листа LUCITE, с добавлением антибактериального свойства MICROBAN.\nМатериал115|27800\nМатериал116|35545671_967.jpg\nМатериал117|35545671_967-2.jpg\nМатериал118|35545671_967-3.jpg\nМатериал119|35555711_978-4.jpg\nМатериал120|35445568_1088-5.jpg\nМатериал121|BA7200500000000\nМатериал122|\nМатериал123|\nМатериал124|\nМатериал125|вертикальный (в пол)\nМатериал126|акрил\nМатериал127|нет\nМатериал128|\nМатериал129|110\nМатериал130|170\nМатериал131|46,5\nМатериал132|\nМатериал133|бытовая\nМатериал134|\nМатериал135|\nМатериал136|\nМатериал137|\nМатериал138|\nМатериал139|\nМатериал140|асимметричная\nМатериал141|да\nМатериал142|современный стиль\nМатериал143|белый\nМатериал144|\nМатериал145|\nМатериал146|\nМатериал147|встроенное сиденье\nМатериал148|10 лет\nМатериал149|Чехия, Нидерланды\nМатериал150|установка универсальная\nМатериал151|подлокотники\nМатериал152|хром\nМатериал153|nero laccato\nМатериал154|220-230\nМатериал155|нет\nМатериал156|подвесной\nМатериал157|45\nМатериал158|любое, по желанию\nМатериал159|пристенная\nМатериал160|по центру\nМатериал161|5,2\nМатериал162|0,5\nМатериал163|установка по желанию\nМатериал164|гидромассаж спины, гидромассаж боковой, гидромассаж ног\nМатериал165|6\nМатериал166|12\nМатериал167|2\nМатериал168|1\nМатериал169|есть, приобретаются отдельно\nМатериал170|есть, приобретаются отдельно\nМатериал171|нет, установка на каркас не предусмотрена\nМатериал172|есть, приобретается отдельно\nМатериал173|нет, приобретается отдельно\nМатериал174|320\nМатериал175|нет\nМатериал176|левая\nМатериал177|установка по желанию\nМатериал178|установка по желанию\nМатериал179|\nМатериал180|установка по желанию\nМатериал181|установка по желанию\nМатериал182|12\nМатериал183|системы гидромассажа\nМатериал184|нет\nМатериал185|ванн Riho Miami\nМатериал186|13\nМатериал187|88\nМатериал188|массив ореха\nМатериал189|массив лиственных деревьев\nМатериал190|прямоугольная\nМатериал191|черный\nМатериал192|с ящиками\nМатериал193|нет\nМатериал194|\nМатериал195|керамическая кран-букса\nМатериал196|фарфор\nМатериал197|полукруглая\nМатериал198|белый\nМатериал199|1\nМатериал200|"]
["Riho","Lyra","Чехия / Нидерланды","Lyra 140","\nВанна RIHO KLASSIK 150 изготовлена из 100 % акрилового листа LUCITE, с добавлением антибактериального свойства MICROBAN.","Описание\nВанна RIHO KLASSIK 150 изготовлена из 100 % акрилового листа LUCITE, с добавлением антибактериального свойства MICROBAN.",24930,"35545668_968.jpg","35545668_968-2.jpg","35545668_968-3.jpg","35445590_1020-4.jpg","35455677_1133-5.jpg","BC0700500000000",null,null,null,"вертикальный (в пол)","акрил","нет",null,90,140,45,null,"бытовая",null,null,null,null,null,null,"асимметричная","да","современный стиль","белый",null,null,null,"встроенное сиденье","10 лет","Чехия, Нидерланды","установка универсальная","подлокотники","бронза","bianco laccato","220-230","нет","напольный",56,"любое, по желанию","пристенная","по центру",5.2,0.5,"установка по желанию","гидромассаж спины, гидромассаж боковой, гидромассаж ног",6,12,2,1,"есть, приобретаются отдельно","есть, приобретаются отдельно","нет, установка на каркас не предусмотрена","есть, приобретается отдельно","нет, приобретается отдельно",220,"нет","левая","установка по желанию","установка по желанию",null,"установка по желанию","установка по желанию",12,"системы гидромассажа","нет","ванн Riho Julia",13,112,"массив ореха","массив лиственных деревьев","округлая","белый","с ящиками","нет",null,"керамическая кран-букса","фарфор","полукруглая","белый",1,null,null,null,6,"раздвижная",1,"серый","акрил","рифленое","хром","алюминий","стекло","низкий","белый","нет, приобретается отдельно","да","для ванны с душем, набор: смеситель и душевой гарнитур","Riho","Lyra","Чехия / Нидерланды","Lyra 140","\nВанна RIHO KLASSIK 150 изготовлена из 100 % акрилового листа LUCITE, с добавлением антибактериального свойства MICROBAN.","Описание\nВанна RIHO KLASSIK 150 изготовлена из 100 % акрилового листа LUCITE, с добавлением антибактериального свойства MICROBAN.",24930,"35545668_968.jpg","35545668_968-2.jpg","35545668_968-3.jpg","35445590_1020-4.jpg","35455677_1133-5.jpg","BC0700500000000",null,null,null,"вертикальный (в пол)","акрил","нет",null,90,140,45,null,"бытовая",null,null,null,null,null,null,"асимметричная","да","современный стиль","белый",null,null,null,"встроенное сиденье","10 лет","Чехия, Нидерланды","установка универсальная","подлокотники","бронза","bianco laccato","220-230","нет","напольный",56,"любое, по желанию","пристенная","по центру",5.2,0.5,"установка по желанию","гидромассаж спины, гидромассаж боковой, гидромассаж ног",6,12,2,1,"есть, приобретаются отдельно","есть, приобретаются отдельно","нет, установка на каркас не предусмотрена","есть, приобретается отдельно","нет, приобретается отдельно",220,"нет","левая","установка по желанию","установка по желанию",null,"установка по желанию","установка по желанию",12,"системы гидромассажа","нет","ванн Riho Julia",13,112,"массив ореха","массив лиственных деревьев","округлая","белый","с ящиками","нет",null,"керамическая кран-букса","фарфор","полукруглая","белый",1,null,null,"Материал1|Riho\nМатериал2|Lyra\nМатериал3|Чехия / Нидерланды\nМатериал4|Lyra 140\nМатериал5|\nВанна RIHO KLASSIK 150 изготовлена из 100 % акрилового листа LUCITE, с добавлением антибактериального свойства MICROBAN.\nМатериал6|Описание\nВанна RIHO KLASSIK 150 изготовлена из 100 % акрилового листа LUCITE, с добавлением антибактериального свойства MICROBAN.\nМатериал7|24930\nМатериал8|35545668_968.jpg\nМатериал9|35545668_968-2.jpg\nМатериал10|35545668_968-3.jpg\nМатериал11|35445590_1020-4.jpg\nМатериал12|35455677_1133-5.jpg\nМатериал13|BC0700500000000\nМатериал14|\nМатериал15|\nМатериал16|\nМатериал17|вертикальный (в пол)\nМатериал18|акрил\nМатериал19|нет\nМатериал20|\nМатериал21|90\nМатериал22|140\nМатериал23|45\nМатериал24|\nМатериал25|бытовая\nМатериал26|\nМатериал27|\nМатериал28|\nМатериал29|\nМатериал30|\nМатериал31|\nМатериал32|асимметричная\nМатериал33|да\nМатериал34|современный стиль\nМатериал35|белый\nМатериал36|\nМатериал37|\nМатериал38|\nМатериал39|встроенное сиденье\nМатериал40|10 лет\nМатериал41|Чехия, Нидерланды\nМатериал42|установка универсальная\nМатериал43|подлокотники\nМатериал44|бронза\nМатериал45|bianco laccato\nМатериал46|220-230\nМатериал47|нет\nМатериал48|напольный\nМатериал49|56\nМатериал50|любое, по желанию\nМатериал51|пристенная\nМатериал52|по центру\nМатериал53|5,2\nМатериал54|0,5\nМатериал55|установка по желанию\nМатериал56|гидромассаж спины, гидромассаж боковой, гидромассаж ног\nМатериал57|6\nМатериал58|12\nМатериал59|2\nМатериал60|1\nМатериал61|есть, приобретаются отдельно\nМатериал62|есть, приобретаются отдельно\nМатериал63|нет, установка на каркас не предусмотрена\nМатериал64|есть, приобретается отдельно\nМатериал65|нет, приобретается отдельно\nМатериал66|220\nМатериал67|нет\nМатериал68|левая\nМатериал69|установка по желанию\nМатериал70|установка по желанию\nМатериал71|\nМатериал72|установка по желанию\nМатериал73|установка по желанию\nМатериал74|12\nМатериал75|системы гидромассажа\nМатериал76|нет\nМатериал77|ванн Riho Julia\nМатериал78|13\nМатериал79|112\nМатериал80|массив ореха\nМатериал81|массив лиственных деревьев\nМатериал82|округлая\nМатериал83|белый\nМатериал84|с ящиками\nМатериал85|нет\nМатериал86|\nМатериал87|керамическая кран-букса\nМатериал88|фарфор\nМатериал89|полукруглая\nМатериал90|белый\nМатериал91|1\nМатериал92|\nМатериал93|\nМатериал94|\nМатериал95|6\nМатериал96|раздвижная\nМатериал97|1\nМатериал98|серый\nМатериал99|акрил\nМатериал100|рифленое\nМатериал101|хром\nМатериал102|алюминий\nМатериал103|стекло\nМатериал104|низкий\nМатериал105|белый\nМатериал106|нет, приобретается отдельно\nМатериал107|да\nМатериал108|для ванны с душем, набор: смеситель и душевой гарнитур\nМатериал109|Riho\nМатериал110|Lyra\nМатериал111|Чехия / Нидерланды\nМатериал112|Lyra 140\nМатериал113|\nВанна RIHO KLASSIK 150 изготовлена из 100 % акрилового листа LUCITE, с добавлением антибактериального свойства MICROBAN.\nМатериал114|Описание\nВанна RIHO KLASSIK 150 изготовлена из 100 % акрилового листа LUCITE, с добавлением антибактериального свойства MICROBAN.\nМатериал115|24930\nМатериал116|35545668_968.jpg\nМатериал117|35545668_968-2.jpg\nМатериал118|35545668_968-3.jpg\nМатериал119|35445590_1020-4.jpg\nМатериал120|35455677_1133-5.jpg\nМатериал121|BC0700500000000\nМатериал122|\nМатериал123|\nМатериал124|\nМатериал125|вертикальный (в пол)\nМатериал126|акрил\nМатериал127|нет\nМатериал128|\nМатериал129|90\nМатериал130|140\nМатериал131|45\nМатериал132|\nМатериал133|бытовая\nМатериал134|\nМатериал135|\nМатериал136|\nМатериал137|\nМатериал138|\nМатериал139|\nМатериал140|асимметричная\nМатериал141|да\nМатериал142|современный стиль\nМатериал143|белый\nМатериал144|\nМатериал145|\nМатериал146|\nМатериал147|встроенное сиденье\nМатериал148|10 лет\nМатериал149|Чехия, Нидерланды\nМатериал150|установка универсальная\nМатериал151|подлокотники\nМатериал152|бронза\nМатериал153|bianco laccato\nМатериал154|220-230\nМатериал155|нет\nМатериал156|напольный\nМатериал157|56\nМатериал158|любое, по желанию\nМатериал159|пристенная\nМатериал160|по центру\nМатериал161|5,2\nМатериал162|0,5\nМатериал163|установка по желанию\nМатериал164|гидромассаж спины, гидромассаж боковой, гидромассаж ног\nМатериал165|6\nМатериал166|12\nМатериал167|2\nМатериал168|1\nМатериал169|есть, приобретаются отдельно\nМатериал170|есть, приобретаются отдельно\nМатериал171|нет, установка на каркас не предусмотрена\nМатериал172|есть, приобретается отдельно\nМатериал173|нет, приобретается отдельно\nМатериал174|220\nМатериал175|нет\nМатериал176|левая\nМатериал177|установка по желанию\nМатериал178|установка по желанию\nМатериал179|\nМатериал180|установка по желанию\nМатериал181|установка по желанию\nМатериал182|12\nМатериал183|системы гидромассажа\nМатериал184|нет\nМатериал185|ванн Riho Julia\nМатериал186|13\nМатериал187|112\nМатериал188|массив ореха\nМатериал189|массив лиственных деревьев\nМатериал190|округлая\nМатериал191|белый\nМатериал192|с ящиками\nМатериал193|нет\nМатериал194|\nМатериал195|керамическая кран-букса\nМатериал196|фарфор\nМатериал197|полукруглая\nМатериал198|белый\nМатериал199|1\nМатериал200|"]
["Riho","Julia","Чехия / Нидерланды","Julia 190","\nВанна RIHO JULIA 180 изготовлена из 100 % акрилового листа LUCITE, с добавлением антибактериального свойства MICROBAN.","Описание\nВанна RIHO JULIA 180 изготовлена из 100 % акрилового листа LUCITE, с добавлением антибактериального свойства MICROBAN.",33870,"35545685_976.jpg","35545685_976-2.jpg","35545685_976-3.jpg","35454667_1052-4.jpg","35445558_1185-5.jpg","BA0500500000000",null,null,null,"вертикальный (в пол)","акрил","нет",null,90,190,53,null,"бытовая",null,null,null,null,null,null,"прямоугольная","нет","современный стиль","белый",null,null,null,"встроенное сиденье","10 лет","Чехия, Нидерланды","противокальцевая обработка стекла (Idrorepellente Vetro)","подлокотники","хром, кристалл","tortora frassinato","220-230","нет","подвесной",54,"любое, по желанию","пристенная","стандартное",5.2,0.5,"установка по желанию","гидромассаж спины, гидромассаж боковой, гидромассаж ног",6,12,2,1,"есть, приобретаются отдельно","есть, приобретаются отдельно","нет, установка на каркас не предусмотрена","есть, приобретается отдельно","нет, приобретается отдельно",150,"нет","левая","установка по желанию","установка по желанию",null,"установка по желанию","установка по желанию",12,"системы гидромассажа","нет","ванн Riho Lima",21,103,"массив ореха","массив лиственных деревьев","прямоугольная","светлое дерево","с ящиками","нет",null,"керамическая кран-букса","фарфор","полукруглая","белый",1,null,null,null,6,"раздвижная",1,"серый","акрил","прозрачное","хром","алюминий","стекло","низкий","белый","нет, приобретается отдельно","да","для раковины","Riho","Julia","Чехия / Нидерланды","Julia 190","\nВанна RIHO JULIA 180 изготовлена из 100 % акрилового листа LUCITE, с добавлением антибактериального свойства MICROBAN.","Описание\nВанна RIHO JULIA 180 изготовлена из 100 % акрилового листа LUCITE, с добавлением антибактериального свойства MICROBAN.",33870,"35545685_976.jpg","35545685_976-2.jpg","35545685_976-3.jpg","35454667_1052-4.jpg","35445558_1185-5.jpg","BA0500500000000",null,null,null,"вертикальный (в пол)","акрил","нет",null,90,190,53,null,"бытовая",null,null,null,null,null,null,"прямоугольная","нет","современный стиль","белый",null,null,null,"встроенное сиденье","10 лет","Чехия, Нидерланды","противокальцевая обработка стекла (Idrorepellente Vetro)","подлокотники","хром, кристалл","tortora frassinato","220-230","нет","подвесной",54,"любое, по желанию","пристенная","стандартное",5.2,0.5,"установка по желанию","гидромассаж спины, гидромассаж боковой, гидромассаж ног",6,12,2,1,"есть, приобретаются отдельно","есть, приобретаются отдельно","нет, установка на каркас не предусмотрена","есть, приобретается отдельно","нет, приобретается отдельно",150,"нет","левая","установка по желанию","установка по желанию",null,"установка по желанию","установка по желанию",12,"системы гидромассажа","нет","ванн Riho Lima",21,103,"массив ореха","массив лиственных деревьев","прямоугольная","светлое дерево","с ящиками","нет",null,"керамическая кран-букса","фарфор","полукруглая","белый",1,null,null,"Материал1|Riho\nМатериал2|Julia\nМатериал3|Чехия / Нидерланды\nМатериал4|Julia 190\nМатериал5|\nВанна RIHO JULIA 180 изготовлена из 100 % акрилового листа LUCITE, с добавлением антибактериального свойства MICROBAN.\nМатериал6|Описание\nВанна RIHO JULIA 180 изготовлена из 100 % акрилового листа LUCITE, с добавлением антибактериального свойства MICROBAN.\nМатериал7|33870\nМатериал8|35545685_976.jpg\nМатериал9|35545685_976-2.jpg\nМатериал10|35545685_976-3.jpg\nМатериал11|35454667_1052-4.jpg\nМатериал12|35445558_1185-5.jpg\nМатериал13|BA0500500000000\nМатериал14|\nМатериал15|\nМатериал16|\nМатериал17|вертикальный (в пол)\nМатериал18|акрил\nМатериал19|нет\nМатериал20|\nМатериал21|90\nМатериал22|190\nМатериал23|53\nМатериал24|\nМатериал25|бытовая\nМатериал26|\nМатериал27|\nМатериал28|\nМатериал29|\nМатериал30|\nМатериал31|\nМатериал32|прямоугольная\nМатериал33|нет\nМатериал34|современный стиль\nМатериал35|белый\nМатериал36|\nМатериал37|\nМатериал38|\nМатериал39|встроенное сиденье\nМатериал40|10 лет\nМатериал41|Чехия, Нидерланды\nМатериал42|противокальцевая обработка стекла (Idrorepellente Vetro)\nМатериал43|подлокотники\nМатериал44|хром, кристалл\nМатериал45|tortora frassinato\nМатериал46|220-230\nМатериал47|нет\nМатериал48|подвесной\nМатериал49|54\nМатериал50|любое, по желанию\nМатериал51|пристенная\nМатериал52|стандартное\nМатериал53|5,2\nМатериал54|0,5\nМатериал55|установка по желанию\nМатериал56|гидромассаж спины, гидромассаж боковой, гидромассаж ног\nМатериал57|6\nМатериал58|12\nМатериал59|2\nМатериал60|1\nМатериал61|есть, приобретаются отдельно\nМатериал62|есть, приобретаются отдельно\nМатериал63|нет, установка на каркас не предусмотрена\nМатериал64|есть, приобретается отдельно\nМатериал65|нет, приобретается отдельно\nМатериал66|150\nМатериал67|нет\nМатериал68|левая\nМатериал69|установка по желанию\nМатериал70|установка по желанию\nМатериал71|\nМатериал72|установка по желанию\nМатериал73|установка по желанию\nМатериал74|12\nМатериал75|системы гидромассажа\nМатериал76|нет\nМатериал77|ванн Riho Lima\nМатериал78|21\nМатериал79|103\nМатериал80|массив ореха\nМатериал81|массив лиственных деревьев\nМатериал82|прямоугольная\nМатериал83|светлое дерево\nМатериал84|с ящиками\nМатериал85|нет\nМатериал86|\nМатериал87|керамическая кран-букса\nМатериал88|фарфор\nМатериал89|полукруглая\nМатериал90|белый\nМатериал91|1\nМатериал92|\nМатериал93|\nМатериал94|\nМатериал95|6\nМатериал96|раздвижная\nМатериал97|1\nМатериал98|серый\nМатериал99|акрил\nМатериал100|прозрачное\nМатериал101|хром\nМатериал102|алюминий\nМатериал103|стекло\nМатериал104|низкий\nМатериал105|белый\nМатериал106|нет, приобретается отдельно\nМатериал107|да\nМатериал108|для раковины\nМатериал109|Riho\nМатериал110|Julia\nМатериал111|Чехия / Нидерланды\nМатериал112|Julia 190\nМатериал113|\nВанна RIHO JULIA 180 изготовлена из 100 % акрилового листа LUCITE, с добавлением антибактериального свойства MICROBAN.\nМатериал114|Описание\nВанна RIHO JULIA 180 изготовлена из 100 % акрилового листа LUCITE, с добавлением антибактериального свойства MICROBAN.\nМатериал115|33870\nМатериал116|35545685_976.jpg\nМатериал117|35545685_976-2.jpg\nМатериал118|35545685_976-3.jpg\nМатериал119|35454667_1052-4.jpg\nМатериал120|35445558_1185-5.jpg\nМатериал121|BA0500500000000\nМатериал122|\nМатериал123|\nМатериал124|\nМатериал125|вертикальный (в пол)\nМатериал126|акрил\nМатериал127|нет\nМатериал128|\nМатериал129|90\nМатериал130|190\nМатериал131|53\nМатериал132|\nМатериал133|бытовая\nМатериал134|\nМатериал135|\nМатериал136|\nМатериал137|\nМатериал138|\nМатериал139|\nМатериал140|прямоугольная\nМатериал141|нет\nМатериал142|современный стиль\nМатериал143|белый\nМатериал144|\nМатериал145|\nМатериал146|\nМатериал147|встроенное сиденье\nМатериал148|10 лет\nМатериал149|Чехия, Нидерланды\nМатериал150|противокальцевая обработка стекла (Idrorepellente Vetro)\nМатериал151|подлокотники\nМатериал152|хром, кристалл\nМатериал153|tortora frassinato\nМатериал154|220-230\nМатериал155|нет\nМатериал156|подвесной\nМатериал157|54\nМатериал158|любое, по желанию\nМатериал159|пристенная\nМатериал160|стандартное\nМатериал161|5,2\nМатериал162|0,5\nМатериал163|установка по желанию\nМатериал164|гидромассаж спины, гидромассаж боковой, гидромассаж ног\nМатериал165|6\nМатериал166|12\nМатериал167|2\nМатериал168|1\nМатериал169|есть, приобретаются отдельно\nМатериал170|есть, приобретаются отдельно\nМатериал171|нет, установка на каркас не предусмотрена\nМатериал172|есть, приобретается отдельно\nМатериал173|нет, приобретается отдельно\nМатериал174|150\nМатериал175|нет\nМатериал176|левая\nМатериал177|установка по желанию\nМатериал178|установка по желанию\nМатериал179|\nМатериал180|установка по желанию\nМатериал181|установка по желанию\nМатериал182|12\nМатериал183|системы гидромассажа\nМатериал184|нет\nМатериал185|ванн Riho Lima\nМатериал186|21\nМатериал187|103\nМатериал188|массив ореха\nМатериал189|массив лиственных деревьев\nМатериал190|прямоугольная\nМатериал191|светлое дерево\nМатериал192|с ящиками\nМатериал193|нет\nМатериал194|\nМатериал195|керамическая кран-букса\nМатериал196|фарфор\nМатериал197|полукруглая\nМатериал198|белый\nМатериал199|1\nМатериал200|"]

{"sheet":"Пример Работает","index":1,"n_rows":20,"n_cols":10,"rows_kept":20,"cut":false,"hidden":false,"merged":[]}
["Материал|","Ширина, см|","Длина, см|","Высота, см|","Высота чаши|","Область применения|",null,null,"Нужно"]
["фарфор",36.5,55.5,40.5,42.5,"бытовая",null,null,{"$f":"A$1&A2&CHAR(10)&B$1&B2&CHAR(10)&C$1&C2&CHAR(10)&D$1&D2&CHAR(10)&E$1&E2&CHAR(10)&F$1&F2","v":"Материал|фарфор\nШирина, см|36,5\nДлина, см|55,5\nВысота, см|40,5\nВысота чаши|42,5\nОбласть применения|бытовая"},{"$f":"cc(A1:F1,A2:F2)","v":"Материал|фарфор\nШирина, см|36,5\nДлина, см|55,5\nВысота, см|40,5\nВысота чаши|42,5\nОбласть применения|бытовая"}]
["фарфор",38,64,82,45,"бытовая",null,null,{"$f":"A$1&A3&CHAR(10)&B$1&B3&CHAR(10)&C$1&C3&CHAR(10)&D$1&D3&CHAR(10)&E$1&E3&CHAR(10)&F$1&F3","v":"Материал|фарфор\nШирина, см|38\nДлина, см|64\nВысота, см|82\nВысота чаши|45\nОбласть применения|бытовая"}]
["фарфор",36,67,83,40,"бытовая",null,null,"Материал|фарфор\nШирина, см|36\nДлина, см|67\nВысота, см|83\nВысота чаши|40\nОбласть применения|бытовая"]
["фарфор",43.5,74.5,84.5,40,"бытовая",null,null,"Материал|фарфор\nШирина, см|43,5\nДлина, см|74,5\nВысота, см|84,5\nВысота чаши|40\nОбласть применения|бытовая"]
["фарфор",45.5,69,84.5,40,"бытовая",null,null,"Материал|фарфор\nШирина, см|45,5\nДлина, см|69\nВысота, см|84,5\nВысота чаши|40\nОбласть применения|бытовая"]
["акрил",80,180,43,null,"бытовая",null,null,"Материал|акрил\nШирина, см|80\nДлина, см|180\nВысота, см|43\nВысота чаши|\nОбласть применения|бытовая"]
["акрил",150,150,49,null,"бытовая",null,null,"Материал|акрил\nШирина, см|150\nДлина, см|150\nВысота, см|49\nВысота чаши|\nОбласть применения|бытовая"]
["акрил",140,140,47.5,null,"бытовая",null,null,"Материал|акрил\nШирина, см|140\nДлина, см|140\nВысота, см|47,5\nВысота чаши|\nОбласть применения|бытовая"]
["акрил",110,170,46.5,null,"бытовая",null,null,"Материал|акрил\nШирина, см|110\nДлина, см|170\nВысота, см|46,5\nВысота чаши|\nОбласть применения|бытовая"]
["акрил",90,140,45,null,"бытовая",null,null,"Материал|акрил\nШирина, см|90\nДлина, см|140\nВысота, см|45\nВысота чаши|\nОбласть применения|бытовая"]
["акрил",90,190,53,null,"бытовая",null,null,"Материал|акрил\nШирина, см|90\nДлина, см|190\nВысота, см|53\nВысота чаши|\nОбласть применения|бытовая"]
["акрил",80,170,48,null,"бытовая",null,null,"Материал|акрил\nШирина, см|80\nДлина, см|170\nВысота, см|48\nВысота чаши|\nОбласть применения|бытовая"]
["акрил",70,150,43,null,"бытовая",null,null,"Материал|акрил\nШирина, см|70\nДлина, см|150\nВысота, см|43\nВысота чаши|\nОбласть применения|бытовая"]
["акрил",80,180,52,null,"бытовая",null,null,"Материал|акрил\nШирина, см|80\nДлина, см|180\nВысота, см|52\nВысота чаши|\nОбласть применения|бытовая"]
["акрил",80,170,46,null,"бытовая",null,null,"Материал|акрил\nШирина, см|80\nДлина, см|170\nВысота, см|46\nВысота чаши|\nОбласть применения|бытовая"]
["акрил",70,140,47,null,"бытовая",null,null,"Материал|акрил\nШирина, см|70\nДлина, см|140\nВысота, см|47\nВысота чаши|\nОбласть применения|бытовая"]
["акрил",120,180,51,null,"бытовая",null,null,"Материал|акрил\nШирина, см|120\nДлина, см|180\nВысота, см|51\nВысота чаши|\nОбласть применения|бытовая"]
["акрил",70,170,48.5,null,"бытовая",null,null,"Материал|акрил\nШирина, см|70\nДлина, см|170\nВысота, см|48,5\nВысота чаши|\nОбласть применения|бытовая"]
["акрил",80,170,53,null,"бытовая",null,null,"Материал|акрил\nШирина, см|80\nДлина, см|170\nВысота, см|53\nВысота чаши|\nОбласть применения|бытовая"]